{"text_format":"3","workbook":"xlsx","n_sheets":13,"sheets":["Portada","Antes de Empezar","Instrucciones","Inventario causa eKOGUI listado","Inventario causa no eKOGUI","Estado Actual","Pasos 2 y 3","Paso 4","Paso 5","Paso 6","Acta Mesa de Estudios Jurídicos","Listado Entidades","Causa eKOGUI"],"not_rendered":{"images":3,"macros":1,"defined_names":9},"read":"whole","date_system":"1900"}

{"sheet":"Portada","index":0,"n_rows":15,"n_cols":4,"rows_kept":15,"merged":[[7,2,7,13],[10,3,10,13],[12,2,12,13],[14,3,14,5]]}
{"$rows_empty":7}
[null,null,"Aplicativo de Casos Ganados y Perdidos"]
[]
[]
[null,null,"Entidad"]
[]
[null,null,"ANDJE - Modelo Óptimo de Gestión para la Defensa Jurídica del Estado (MOG)"]
[]
[null,null,"Fecha","DD/MM/AA"]

{"sheet":"Antes de Empezar","index":1,"n_rows":15,"n_cols":3,"rows_kept":15,"merged":[[4,2,4,13],[6,2,6,13],[8,2,8,13],[10,2,10,13],[12,2,12,13],[14,2,14,13]]}
[]
[]
[]
[]
[null,null,"Antes de Empezar"]
[]
[null,null,"Objetivo"]
[]
[null,null,"Lograr un entendimiento generalizado de las fallas y los aciertos para tomar decisiones que contribuyan a la mejora de la defensa judicial."]
[]
[null,null,"Alcance del Aplicativo"]
[]
[null,null,"Este aplicativo permite: (i) sistematizar por causa las sentencias o laudos arbitrales, ganados y perdidos, terminados de los últimos cinco años y (ii) realizar el análisis del proceso judicial o laudo arbitral seleccionado siguiendo los pasos que se desarrollan en la pestaña \"Instrucciones\"."]
[]
[null,null,"Nota: este documento puede ser objeto de modificación por la ANDJE a medida que avance la implementación del MOG en las entidades."]

{"sheet":"Instrucciones","index":2,"n_rows":36,"n_cols":3,"rows_kept":36,"merged":[[4,2,4,13],[6,2,6,13],[8,2,8,13],[10,2,10,13],[12,2,12,13],[14,2,14,13],[16,2,16,13],[18,2,18,13],[20,2,20,13],[22,2,22,13],[24,2,24,13],[26,2,27,13],[29,2,29,13],[31,2,31,13],[33,2,33,13],[35,2,35,13]]}
[]
[]
[]
[]
[null,null,"Instrucciones"]
[]
[null,null,"Para el uso de este aplicativo se deberán seguir las siguientes instrucciones:"]
[]
[null,null,"1. Realizar el inventario de casos ganados y perdidos"]
[]
[null,null,"1.1 Seleccionar en la casilla denominada \"Año punto de partida\" el primer año de los cinco sobre los que se realizará el estudio en la pestaña \"Inventario causa no eKOGUI\". \n\n1.2 Luego, diligenciar el aplicativo así:\n\n- Identificar y seleccionar la causa  correspondiente a las sentencias o laudos terminados en los cinco años analizados en la pestaña \"Inventario causa no eKOGUI\". \n- Incluir el número total de casos ganados y perdidos por anualidad.\n\n1.3 Una vez diligenciados en su totalidad los espacios determinados en el punto anterior, en la pestaña \"Estado Actual\" se puede observar el total de casos ganados y perdidos por causa y por años. Esta información es el insumo para priorizar la causa de la que se seleccionará el proceso que se analizará en la Mesa de Estudios Jurídicos.\n"]
[]
[null,null,"2. Priorizar causa"]
[]
[null,null,"Con base en la información del análisis cuantitativo mencionado en el numeral anterior, se prioriza la causa de la que se escogerá el proceso que se analizará en la Mesa de Estudios Jurídicos. El criterio de priorización recomendado es la frecuencia, por lo tanto, se puede priorizar la causa que tenga:\n\n- El mayor número de casos ganados.\n- El mayor número de casos perdidos.\n\n De ser necesario puede adoptar otros criterios de priorización y explicarlos."]
[]
[null,null,"3. Definir el caso a evaluar"]
[]
[null,null,"Una vez priorizada la causa a trabajar y seleccionado el caso de estudio, se debe diligenciar la información básica del proceso que se presenta a continuación:\n\n- Tipo de acción o medio de control.\n- N° Radicado.\n- Despacho judicial de primera instancia.\n- Despacho judicial de segunda instancia."]
[]
[null,null,"4. Participantes"]
[]
[null,null,"Incluir los nombres del moderador, el relator y las demás personas que participen en la Mesa de Estudios Jurídicos."]
[]
[null,null,"5. Discutir el caso"]
[]
[null,null,"El moderador da inicio a la Mesa de Estudios Jurídicos realizando las siguientes preguntas, las cuales deben ser contestadas por los participantes. Dichas respuestas deben incluirse en el presente aplicativo:\n\n- ¿Quiénes son los actores relevantes? \n- ¿Cuáles son los hechos relevantes, de forma cronológica? \n- ¿Cuáles son las pretensiones de las partes?\n- ¿Cuál es el problema jurídico? \n- ¿Cuál es la normatividad, jurisprudencia y doctrina aplicable al caso?\n- ¿Cuáles son las estrategias de defensa, si es posible definirlas?\n- ¿Cuáles son las lecciones aprendidas y aspectos a evitar en la defensa?\n\nAntes de dar por terminada la discusión del caso, el relator debe revisar:\n \n- \tQue exista fidelidad en la narración de los hechos. \n-\t Que esté bien definida la información correspondiente a las partes, instancia, problema jurídico, pretensiones, hechos, pruebas, entre otros.\n- \tQue la información incluida en el aplicativo no sea ambigua ni confusa, que sea suficiente.\n-\t Que se hayan analizado todos los puntos clave.\n-\t Que esté bien escrita la información incluida en el aplicativo. "]
[]
[]
[null,null,"6. Elaborar las conclusiones de la evaluación"]
[]
[null,null,"Al obtener el panorama general de la discusión, el relator debe incluir en este aplicativo las conclusiones del ejercicio recogidas por el moderador y las acciones posteriores tales como: elaborar los lineamientos, resoluciones, recomendaciones y/u otros. "]
[]
[null,null,"7. \tDescargar y firmar el acta de la Mesa de Estudios Jurídicos"]
[]
[null,null,"Como resultado final, el relator y el moderador deben descargar la versión PDF del acta de la Mesa de Estudios Jurídicos, que contiene la información correspondiente a los pasos 2 al 6 y firmarla. "]

{"sheet":"Inventario causa eKOGUI listado","index":3,"n_rows":41,"n_cols":13,"rows_kept":41,"hidden":true,"merged":[[4,2,4,12],[7,3,7,5],[9,3,9,4],[9,5,9,6],[9,7,9,8],[9,9,9,10],[9,11,9,12]]}
[]
[]
[]
[]
[null,null,"1. Inventario de casos ganados y perdidos por causa eKOGUI"]
[]
[null,null," "]
[{"$nulls":3},"Año punto de partida",null,null,2016]
[]
[null,null,"Causa eKOGUI",{"$f":"G8","v":2016},null,{"$f":"D10+1","v":2017},null,{"$f":"F10+1","v":2018},null,{"$f":"H10+1","v":2019},null,{"$f":"J10+1","v":2020}]
[null,"N°","Seleccione la causa eKOGUI de la lista desplegable","Ganados","Perdidos","Ganados","Perdidos","Ganados","Perdidos","Ganados","Perdidos","Ganados","Perdidos"]
[null,1]
[null,2]
[null,3]
[null,4]
[null,5]
[null,6]
[null,7]
[null,8]
[null,9]
[null,10]
[null,11]
[null,12]
[null,13]
[null,14]
[null,15]
[null,16]
[null,17]
[null,18]
[null,19]
[null,20]
[null,21]
[null,22]
[null,23]
[null,24]
[null,25]
[null,26]
[null,27]
[null,28]
[null,29]
[null,30]

{"sheet":"Inventario causa no eKOGUI","index":4,"n_rows":41,"n_cols":13,"rows_kept":41,"merged":[[4,2,4,12],[7,3,7,5],[9,3,9,4],[9,5,9,6],[9,7,9,8],[9,9,9,10],[9,11,9,12]]}
[]
[]
[]
[]
[null,null,"1. Inventario de casos ganados y perdidos por causa no eKOGUI"]
[]
[null,null," "]
[{"$nulls":3},"Año punto de partida",null,null,2016]
[]
[null,null,"Causa ",{"$f":"G8","v":2016},null,{"$f":"D10+1","v":2017},null,{"$f":"F10+1","v":2018},null,{"$f":"H10+1","v":2019},null,{"$f":"J10+1","v":2020}]
[null,"N°","Por favor escriba la causa","Ganados","Perdidos","Ganados","Perdidos","Ganados","Perdidos","Ganados","Perdidos","Ganados","Perdidos"]
[null,1]
[null,2]
[null,3]
[null,4]
[null,5]
[null,6]
[null,7]
[null,8]
[null,9]
[null,10]
[null,11]
[null,12]
[null,13]
[null,14]
[null,15]
[null,16]
[null,17]
[null,18]
[null,19]
[null,20]
[null,21]
[null,22]
[null,23]
[null,24]
[null,25]
[null,26]
[null,27]
[null,28]
[null,29]
[null,30]

{"sheet":"Estado Actual","index":5,"n_rows":38,"n_cols":14,"rows_kept":38,"merged":[[4,2,4,15]]}
[]
[]
[]
[]
[null,null,"Estadísticas"]
[]
[]
[{"$nulls":4},"Causa ","Ganados","Perdidos","TOTAL",null,null,"Año","Casos ganados","Casos perdidos","Total casos ganados y perdidos"]
[{"$nulls":4},{"$f":"IF('Inventario causa eKOGUI listado'!C12<>\"\",'Inventario causa eKOGUI listado'!C12,'Inventario causa no eKOGUI'!C12)","v":0},{"$f":"'Inventario causa eKOGUI listado'!D12+'Inventario causa eKOGUI listado'!F12+'Inventario causa eKOGUI listado'!H12+'Inventario causa eKOGUI listado'!J12+'Inventario causa eKOGUI listado'!L12+'Inventario causa no eKOGUI'!D12+'Inventario causa no eKOGUI'!F12+'Inventario causa no eKOGUI'!H12+'Inventario causa no eKOGUI'!J12+'Inventario causa no eKOGUI'!L12","v":0},{"$f":"'Inventario causa eKOGUI listado'!E12+'Inventario causa eKOGUI listado'!G12+'Inventario causa eKOGUI listado'!I12+'Inventario causa eKOGUI listado'!K12+'Inventario causa eKOGUI listado'!M12+'Inventario causa no eKOGUI'!E12+'Inventario causa no eKOGUI'!G12+'Inventario causa no eKOGUI'!I12+'Inventario causa no eKOGUI'!K12+'Inventario causa no eKOGUI'!M12","v":0},{"$f":"F9+G9","v":0},null,null,{"$f":"'Inventario causa eKOGUI listado'!D10","v":2016},{"$f":"SUM('Inventario causa eKOGUI listado'!D12:D41,'Inventario causa no eKOGUI'!D12:D41)","v":0},{"$f":"SUM('Inventario causa eKOGUI listado'!E12:E41,'Inventario causa no eKOGUI'!E12:E41)","v":0},{"$f":"L9+M9","v":0}]
[{"$nulls":4},{"$f":"IF('Inventario causa eKOGUI listado'!C13<>\"\",'Inventario causa eKOGUI listado'!C13,'Inventario causa no eKOGUI'!C13)","v":0},{"$f":"'Inventario causa eKOGUI listado'!D13+'Inventario causa eKOGUI listado'!F13+'Inventario causa eKOGUI listado'!H13+'Inventario causa eKOGUI listado'!J13+'Inventario causa eKOGUI listado'!L13+'Inventario causa no eKOGUI'!D13+'Inventario causa no eKOGUI'!F13+'Inventario causa no eKOGUI'!H13+'Inventario causa no eKOGUI'!J13+'Inventario causa no eKOGUI'!L13","v":0},{"$f":"'Inventario causa eKOGUI listado'!E13+'Inventario causa eKOGUI listado'!G13+'Inventario causa eKOGUI listado'!I13+'Inventario causa eKOGUI listado'!K13+'Inventario causa eKOGUI listado'!M13+'Inventario causa no eKOGUI'!E13+'Inventario causa no eKOGUI'!G13+'Inventario causa no eKOGUI'!I13+'Inventario causa no eKOGUI'!K13+'Inventario causa no eKOGUI'!M13","v":0},{"$f":"F10+G10","v":0},null,null,{"$f":"'Inventario causa eKOGUI listado'!F10","v":2017},{"$f":"SUM('Inventario causa eKOGUI listado'!F12:F41,'Inventario causa no eKOGUI'!F12:F41)","v":0},{"$f":"SUM('Inventario causa eKOGUI listado'!G12:G41,'Inventario causa no eKOGUI'!G12:G41)","v":0},{"$f":"L10+M10","v":0}]
[{"$nulls":4},{"$f":"IF('Inventario causa eKOGUI listado'!C14<>\"\",'Inventario causa eKOGUI listado'!C14,'Inventario causa no eKOGUI'!C14)","v":0},{"$f":"'Inventario causa eKOGUI listado'!D14+'Inventario causa eKOGUI listado'!F14+'Inventario causa eKOGUI listado'!H14+'Inventario causa eKOGUI listado'!J14+'Inventario causa eKOGUI listado'!L14+'Inventario causa no eKOGUI'!D14+'Inventario causa no eKOGUI'!F14+'Inventario causa no eKOGUI'!H14+'Inventario causa no eKOGUI'!J14+'Inventario causa no eKOGUI'!L14","v":0},{"$f":"'Inventario causa eKOGUI listado'!E14+'Inventario causa eKOGUI listado'!G14+'Inventario causa eKOGUI listado'!I14+'Inventario causa eKOGUI listado'!K14+'Inventario causa eKOGUI listado'!M14+'Inventario causa no eKOGUI'!E14+'Inventario causa no eKOGUI'!G14+'Inventario causa no eKOGUI'!I14+'Inventario causa no eKOGUI'!K14+'Inventario causa no eKOGUI'!M14","v":0},0,null,null,{"$f":"'Inventario causa eKOGUI listado'!H10","v":2018},{"$f":"SUM('Inventario causa eKOGUI listado'!H12:H41,'Inventario causa no eKOGUI'!H12:H41)","v":0},{"$f":"SUM('Inventario causa eKOGUI listado'!I12:I41,'Inventario causa no eKOGUI'!I12:I41)","v":0},{"$f":"L11+M11","v":0}]
[{"$nulls":4},{"$f":"IF('Inventario causa eKOGUI listado'!C15<>\"\",'Inventario causa eKOGUI listado'!C15,'Inventario causa no eKOGUI'!C15)","v":0},{"$f":"'Inventario causa eKOGUI listado'!D15+'Inventario causa eKOGUI listado'!F15+'Inventario causa eKOGUI listado'!H15+'Inventario causa eKOGUI listado'!J15+'Inventario causa eKOGUI listado'!L15+'Inventario causa no eKOGUI'!D15+'Inventario causa no eKOGUI'!F15+'Inventario causa no eKOGUI'!H15+'Inventario causa no eKOGUI'!J15+'Inventario causa no eKOGUI'!L15","v":0},{"$f":"'Inventario causa eKOGUI listado'!E15+'Inventario causa eKOGUI listado'!G15+'Inventario causa eKOGUI listado'!I15+'Inventario causa eKOGUI listado'!K15+'Inventario causa eKOGUI listado'!M15+'Inventario causa no eKOGUI'!E15+'Inventario causa no eKOGUI'!G15+'Inventario causa no eKOGUI'!I15+'Inventario causa no eKOGUI'!K15+'Inventario causa no eKOGUI'!M15","v":0},0,null,null,{"$f":"'Inventario causa eKOGUI listado'!J10","v":2019},{"$f":"SUM('Inventario causa eKOGUI listado'!J12:J41,'Inventario causa no eKOGUI'!J12:J41)","v":0},{"$f":"SUM('Inventario causa eKOGUI listado'!K12:K41,'Inventario causa no eKOGUI'!K12:K41)","v":0},{"$f":"L12+M12","v":0}]
[{"$nulls":4},{"$f":"IF('Inventario causa eKOGUI listado'!C16<>\"\",'Inventario causa eKOGUI listado'!C16,'Inventario causa no eKOGUI'!C16)","v":0},{"$f":"'Inventario causa eKOGUI listado'!D16+'Inventario causa eKOGUI listado'!F16+'Inventario causa eKOGUI listado'!H16+'Inventario causa eKOGUI listado'!J16+'Inventario causa eKOGUI listado'!L16+'Inventario causa no eKOGUI'!D16+'Inventario causa no eKOGUI'!F16+'Inventario causa no eKOGUI'!H16+'Inventario causa no eKOGUI'!J16+'Inventario causa no eKOGUI'!L16","v":0},{"$f":"'Inventario causa eKOGUI listado'!E16+'Inventario causa eKOGUI listado'!G16+'Inventario causa eKOGUI listado'!I16+'Inventario causa eKOGUI listado'!K16+'Inventario causa eKOGUI listado'!M16+'Inventario causa no eKOGUI'!E16+'Inventario causa no eKOGUI'!G16+'Inventario causa no eKOGUI'!I16+'Inventario causa no eKOGUI'!K16+'Inventario causa no eKOGUI'!M16","v":0},0,null,null,{"$f":"'Inventario causa eKOGUI listado'!L10","v":2020},{"$f":"SUM('Inventario causa eKOGUI listado'!L12:L41,'Inventario causa no eKOGUI'!L12:L41)","v":0},{"$f":"SUM('Inventario causa eKOGUI listado'!M12:M41,'Inventario causa no eKOGUI'!M12:M41)","v":0},{"$f":"L13+M13","v":0}]
[{"$nulls":4},{"$f":"IF('Inventario causa eKOGUI listado'!C17<>\"\",'Inventario causa eKOGUI listado'!C17,'Inventario causa no eKOGUI'!C17)","v":0},{"$f":"'Inventario causa eKOGUI listado'!D17+'Inventario causa eKOGUI listado'!F17+'Inventario causa eKOGUI listado'!H17+'Inventario causa eKOGUI listado'!J17+'Inventario causa eKOGUI listado'!L17+'Inventario causa no eKOGUI'!D17+'Inventario causa no eKOGUI'!F17+'Inventario causa no eKOGUI'!H17+'Inventario causa no eKOGUI'!J17+'Inventario causa no eKOGUI'!L17","v":0},{"$f":"'Inventario causa eKOGUI listado'!E17+'Inventario causa eKOGUI listado'!G17+'Inventario causa eKOGUI listado'!I17+'Inventario causa eKOGUI listado'!K17+'Inventario causa eKOGUI listado'!M17+'Inventario causa no eKOGUI'!E17+'Inventario causa no eKOGUI'!G17+'Inventario causa no eKOGUI'!I17+'Inventario causa no eKOGUI'!K17+'Inventario causa no eKOGUI'!M17","v":0},0]
[{"$nulls":4},{"$f":"IF('Inventario causa eKOGUI listado'!C18<>\"\",'Inventario causa eKOGUI listado'!C18,'Inventario causa no eKOGUI'!C18)","v":0},{"$f":"'Inventario causa eKOGUI listado'!D18+'Inventario causa eKOGUI listado'!F18+'Inventario causa eKOGUI listado'!H18+'Inventario causa eKOGUI listado'!J18+'Inventario causa eKOGUI listado'!L18+'Inventario causa no eKOGUI'!D18+'Inventario causa no eKOGUI'!F18+'Inventario causa no eKOGUI'!H18+'Inventario causa no eKOGUI'!J18+'Inventario causa no eKOGUI'!L18","v":0},{"$f":"'Inventario causa eKOGUI listado'!E18+'Inventario causa eKOGUI listado'!G18+'Inventario causa eKOGUI listado'!I18+'Inventario causa eKOGUI listado'!K18+'Inventario causa eKOGUI listado'!M18+'Inventario causa no eKOGUI'!E18+'Inventario causa no eKOGUI'!G18+'Inventario causa no eKOGUI'!I18+'Inventario causa no eKOGUI'!K18+'Inventario causa no eKOGUI'!M18","v":0},0,null,null,"Total",{"$f":"SUM(L9:L13)","v":0},{"$f":"SUM(M9:M13)","v":0},{"$f":"L15+M15","v":0}]
[{"$nulls":4},{"$f":"IF('Inventario causa eKOGUI listado'!C19<>\"\",'Inventario causa eKOGUI listado'!C19,'Inventario causa no eKOGUI'!C19)","v":0},{"$f":"'Inventario causa eKOGUI listado'!D19+'Inventario causa eKOGUI listado'!F19+'Inventario causa eKOGUI listado'!H19+'Inventario causa eKOGUI listado'!J19+'Inventario causa eKOGUI listado'!L19+'Inventario causa no eKOGUI'!D19+'Inventario causa no eKOGUI'!F19+'Inventario causa no eKOGUI'!H19+'Inventario causa no eKOGUI'!J19+'Inventario causa no eKOGUI'!L19","v":0},{"$f":"'Inventario causa eKOGUI listado'!E19+'Inventario causa eKOGUI listado'!G19+'Inventario causa eKOGUI listado'!I19+'Inventario causa eKOGUI listado'!K19+'Inventario causa eKOGUI listado'!M19+'Inventario causa no eKOGUI'!E19+'Inventario causa no eKOGUI'!G19+'Inventario causa no eKOGUI'!I19+'Inventario causa no eKOGUI'!K19+'Inventario causa no eKOGUI'!M19","v":0},0]
[{"$nulls":4},{"$f":"IF('Inventario causa eKOGUI listado'!C20<>\"\",'Inventario causa eKOGUI listado'!C20,'Inventario causa no eKOGUI'!C20)","v":0},{"$f":"'Inventario causa eKOGUI listado'!D20+'Inventario causa eKOGUI listado'!F20+'Inventario causa eKOGUI listado'!H20+'Inventario causa eKOGUI listado'!J20+'Inventario causa eKOGUI listado'!L20+'Inventario causa no eKOGUI'!D20+'Inventario causa no eKOGUI'!F20+'Inventario causa no eKOGUI'!H20+'Inventario causa no eKOGUI'!J20+'Inventario causa no eKOGUI'!L20","v":0},{"$f":"'Inventario causa eKOGUI listado'!E20+'Inventario causa eKOGUI listado'!G20+'Inventario causa eKOGUI listado'!I20+'Inventario causa eKOGUI listado'!K20+'Inventario causa eKOGUI listado'!M20+'Inventario causa no eKOGUI'!E20+'Inventario causa no eKOGUI'!G20+'Inventario causa no eKOGUI'!I20+'Inventario causa no eKOGUI'!K20+'Inventario causa no eKOGUI'!M20","v":0},0]
[{"$nulls":4},{"$f":"IF('Inventario causa eKOGUI listado'!C21<>\"\",'Inventario causa eKOGUI listado'!C21,'Inventario causa no eKOGUI'!C21)","v":0},{"$f":"'Inventario causa eKOGUI listado'!D21+'Inventario causa eKOGUI listado'!F21+'Inventario causa eKOGUI listado'!H21+'Inventario causa eKOGUI listado'!J21+'Inventario causa eKOGUI listado'!L21+'Inventario causa no eKOGUI'!D21+'Inventario causa no eKOGUI'!F21+'Inventario causa no eKOGUI'!H21+'Inventario causa no eKOGUI'!J21+'Inventario causa no eKOGUI'!L21","v":0},{"$f":"'Inventario causa eKOGUI listado'!E21+'Inventario causa eKOGUI listado'!G21+'Inventario causa eKOGUI listado'!I21+'Inventario causa eKOGUI listado'!K21+'Inventario causa eKOGUI listado'!M21+'Inventario causa no eKOGUI'!E21+'Inventario causa no eKOGUI'!G21+'Inventario causa no eKOGUI'!I21+'Inventario causa no eKOGUI'!K21+'Inventario causa no eKOGUI'!M21","v":0},0]
[{"$nulls":4},{"$f":"IF('Inventario causa eKOGUI listado'!C22<>\"\",'Inventario causa eKOGUI listado'!C22,'Inventario causa no eKOGUI'!C22)","v":0},{"$f":"'Inventario causa eKOGUI listado'!D22+'Inventario causa eKOGUI listado'!F22+'Inventario causa eKOGUI listado'!H22+'Inventario causa eKOGUI listado'!J22+'Inventario causa eKOGUI listado'!L22+'Inventario causa no eKOGUI'!D22+'Inventario causa no eKOGUI'!F22+'Inventario causa no eKOGUI'!H22+'Inventario causa no eKOGUI'!J22+'Inventario causa no eKOGUI'!L22","v":0},{"$f":"'Inventario causa eKOGUI listado'!E22+'Inventario causa eKOGUI listado'!G22+'Inventario causa eKOGUI listado'!I22+'Inventario causa eKOGUI listado'!K22+'Inventario causa eKOGUI listado'!M22+'Inventario causa no eKOGUI'!E22+'Inventario causa no eKOGUI'!G22+'Inventario causa no eKOGUI'!I22+'Inventario causa no eKOGUI'!K22+'Inventario causa no eKOGUI'!M22","v":0},{"$f":"F19+G19","v":0}]
[{"$nulls":4},{"$f":"IF('Inventario causa eKOGUI listado'!C23<>\"\",'Inventario causa eKOGUI listado'!C23,'Inventario causa no eKOGUI'!C23)","v":0},{"$f":"'Inventario causa eKOGUI listado'!D23+'Inventario causa eKOGUI listado'!F23+'Inventario causa eKOGUI listado'!H23+'Inventario causa eKOGUI listado'!J23+'Inventario causa eKOGUI listado'!L23+'Inventario causa no eKOGUI'!D23+'Inventario causa no eKOGUI'!F23+'Inventario causa no eKOGUI'!H23+'Inventario causa no eKOGUI'!J23+'Inventario causa no eKOGUI'!L23","v":0},{"$f":"'Inventario causa eKOGUI listado'!E23+'Inventario causa eKOGUI listado'!G23+'Inventario causa eKOGUI listado'!I23+'Inventario causa eKOGUI listado'!K23+'Inventario causa eKOGUI listado'!M23+'Inventario causa no eKOGUI'!E23+'Inventario causa no eKOGUI'!G23+'Inventario causa no eKOGUI'!I23+'Inventario causa no eKOGUI'!K23+'Inventario causa no eKOGUI'!M23","v":0},0]
[{"$nulls":4},{"$f":"IF('Inventario causa eKOGUI listado'!C24<>\"\",'Inventario causa eKOGUI listado'!C24,'Inventario causa no eKOGUI'!C24)","v":0},{"$f":"'Inventario causa eKOGUI listado'!D24+'Inventario causa eKOGUI listado'!F24+'Inventario causa eKOGUI listado'!H24+'Inventario causa eKOGUI listado'!J24+'Inventario causa eKOGUI listado'!L24+'Inventario causa no eKOGUI'!D24+'Inventario causa no eKOGUI'!F24+'Inventario causa no eKOGUI'!H24+'Inventario causa no eKOGUI'!J24+'Inventario causa no eKOGUI'!L24","v":0},{"$f":"'Inventario causa eKOGUI listado'!E24+'Inventario causa eKOGUI listado'!G24+'Inventario causa eKOGUI listado'!I24+'Inventario causa eKOGUI listado'!K24+'Inventario causa eKOGUI listado'!M24+'Inventario causa no eKOGUI'!E24+'Inventario causa no eKOGUI'!G24+'Inventario causa no eKOGUI'!I24+'Inventario causa no eKOGUI'!K24+'Inventario causa no eKOGUI'!M24","v":0},0]
[{"$nulls":4},{"$f":"IF('Inventario causa eKOGUI listado'!C25<>\"\",'Inventario causa eKOGUI listado'!C25,'Inventario causa no eKOGUI'!C25)","v":0},{"$f":"'Inventario causa eKOGUI listado'!D25+'Inventario causa eKOGUI listado'!F25+'Inventario causa eKOGUI listado'!H25+'Inventario causa eKOGUI listado'!J25+'Inventario causa eKOGUI listado'!L25+'Inventario causa no eKOGUI'!D25+'Inventario causa no eKOGUI'!F25+'Inventario causa no eKOGUI'!H25+'Inventario causa no eKOGUI'!J25+'Inventario causa no eKOGUI'!L25","v":0},{"$f":"'Inventario causa eKOGUI listado'!E25+'Inventario causa eKOGUI listado'!G25+'Inventario causa eKOGUI listado'!I25+'Inventario causa eKOGUI listado'!K25+'Inventario causa eKOGUI listado'!M25+'Inventario causa no eKOGUI'!E25+'Inventario causa no eKOGUI'!G25+'Inventario causa no eKOGUI'!I25+'Inventario causa no eKOGUI'!K25+'Inventario causa no eKOGUI'!M25","v":0},0]
[{"$nulls":4},{"$f":"IF('Inventario causa eKOGUI listado'!C26<>\"\",'Inventario causa eKOGUI listado'!C26,'Inventario causa no eKOGUI'!C26)","v":0},{"$f":"'Inventario causa eKOGUI listado'!D26+'Inventario causa eKOGUI listado'!F26+'Inventario causa eKOGUI listado'!H26+'Inventario causa eKOGUI listado'!J26+'Inventario causa eKOGUI listado'!L26+'Inventario causa no eKOGUI'!D26+'Inventario causa no eKOGUI'!F26+'Inventario causa no eKOGUI'!H26+'Inventario causa no eKOGUI'!J26+'Inventario causa no eKOGUI'!L26","v":0},{"$f":"'Inventario causa eKOGUI listado'!E26+'Inventario causa eKOGUI listado'!G26+'Inventario causa eKOGUI listado'!I26+'Inventario causa eKOGUI listado'!K26+'Inventario causa eKOGUI listado'!M26+'Inventario causa no eKOGUI'!E26+'Inventario causa no eKOGUI'!G26+'Inventario causa no eKOGUI'!I26+'Inventario causa no eKOGUI'!K26+'Inventario causa no eKOGUI'!M26","v":0},0]
[{"$nulls":4},{"$f":"IF('Inventario causa eKOGUI listado'!C27<>\"\",'Inventario causa eKOGUI listado'!C27,'Inventario causa no eKOGUI'!C27)","v":0},{"$f":"'Inventario causa eKOGUI listado'!D27+'Inventario causa eKOGUI listado'!F27+'Inventario causa eKOGUI listado'!H27+'Inventario causa eKOGUI listado'!J27+'Inventario causa eKOGUI listado'!L27+'Inventario causa no eKOGUI'!D27+'Inventario causa no eKOGUI'!F27+'Inventario causa no eKOGUI'!H27+'Inventario causa no eKOGUI'!J27+'Inventario causa no eKOGUI'!L27","v":0},{"$f":"'Inventario causa eKOGUI listado'!E27+'Inventario causa eKOGUI listado'!G27+'Inventario causa eKOGUI listado'!I27+'Inventario causa eKOGUI listado'!K27+'Inventario causa eKOGUI listado'!M27+'Inventario causa no eKOGUI'!E27+'Inventario causa no eKOGUI'!G27+'Inventario causa no eKOGUI'!I27+'Inventario causa no eKOGUI'!K27+'Inventario causa no eKOGUI'!M27","v":0},0]
[{"$nulls":4},{"$f":"IF('Inventario causa eKOGUI listado'!C28<>\"\",'Inventario causa eKOGUI listado'!C28,'Inventario causa no eKOGUI'!C28)","v":0},{"$f":"'Inventario causa eKOGUI listado'!D28+'Inventario causa eKOGUI listado'!F28+'Inventario causa eKOGUI listado'!H28+'Inventario causa eKOGUI listado'!J28+'Inventario causa eKOGUI listado'!L28+'Inventario causa no eKOGUI'!D28+'Inventario causa no eKOGUI'!F28+'Inventario causa no eKOGUI'!H28+'Inventario causa no eKOGUI'!J28+'Inventario causa no eKOGUI'!L28","v":0},{"$f":"'Inventario causa eKOGUI listado'!E28+'Inventario causa eKOGUI listado'!G28+'Inventario causa eKOGUI listado'!I28+'Inventario causa eKOGUI listado'!K28+'Inventario causa eKOGUI listado'!M28+'Inventario causa no eKOGUI'!E28+'Inventario causa no eKOGUI'!G28+'Inventario causa no eKOGUI'!I28+'Inventario causa no eKOGUI'!K28+'Inventario causa no eKOGUI'!M28","v":0},0]
[{"$nulls":4},{"$f":"IF('Inventario causa eKOGUI listado'!C29<>\"\",'Inventario causa eKOGUI listado'!C29,'Inventario causa no eKOGUI'!C29)","v":0},{"$f":"'Inventario causa eKOGUI listado'!D29+'Inventario causa eKOGUI listado'!F29+'Inventario causa eKOGUI listado'!H29+'Inventario causa eKOGUI listado'!J29+'Inventario causa eKOGUI listado'!L29+'Inventario causa no eKOGUI'!D29+'Inventario causa no eKOGUI'!F29+'Inventario causa no eKOGUI'!H29+'Inventario causa no eKOGUI'!J29+'Inventario causa no eKOGUI'!L29","v":0},{"$f":"'Inventario causa eKOGUI listado'!E29+'Inventario causa eKOGUI listado'!G29+'Inventario causa eKOGUI listado'!I29+'Inventario causa eKOGUI listado'!K29+'Inventario causa eKOGUI listado'!M29+'Inventario causa no eKOGUI'!E29+'Inventario causa no eKOGUI'!G29+'Inventario causa no eKOGUI'!I29+'Inventario causa no eKOGUI'!K29+'Inventario causa no eKOGUI'!M29","v":0},0]
[{"$nulls":4},{"$f":"IF('Inventario causa eKOGUI listado'!C30<>\"\",'Inventario causa eKOGUI listado'!C30,'Inventario causa no eKOGUI'!C30)","v":0},{"$f":"'Inventario causa eKOGUI listado'!D30+'Inventario causa eKOGUI listado'!F30+'Inventario causa eKOGUI listado'!H30+'Inventario causa eKOGUI listado'!J30+'Inventario causa eKOGUI listado'!L30+'Inventario causa no eKOGUI'!D30+'Inventario causa no eKOGUI'!F30+'Inventario causa no eKOGUI'!H30+'Inventario causa no eKOGUI'!J30+'Inventario causa no eKOGUI'!L30","v":0},{"$f":"'Inventario causa eKOGUI listado'!E30+'Inventario causa eKOGUI listado'!G30+'Inventario causa eKOGUI listado'!I30+'Inventario causa eKOGUI listado'!K30+'Inventario causa eKOGUI listado'!M30+'Inventario causa no eKOGUI'!E30+'Inventario causa no eKOGUI'!G30+'Inventario causa no eKOGUI'!I30+'Inventario causa no eKOGUI'!K30+'Inventario causa no eKOGUI'!M30","v":0},0]
[{"$nulls":4},{"$f":"IF('Inventario causa eKOGUI listado'!C31<>\"\",'Inventario causa eKOGUI listado'!C31,'Inventario causa no eKOGUI'!C31)","v":0},{"$f":"'Inventario causa eKOGUI listado'!D31+'Inventario causa eKOGUI listado'!F31+'Inventario causa eKOGUI listado'!H31+'Inventario causa eKOGUI listado'!J31+'Inventario causa eKOGUI listado'!L31+'Inventario causa no eKOGUI'!D31+'Inventario causa no eKOGUI'!F31+'Inventario causa no eKOGUI'!H31+'Inventario causa no eKOGUI'!J31+'Inventario causa no eKOGUI'!L31","v":0},{"$f":"'Inventario causa eKOGUI listado'!E31+'Inventario causa eKOGUI listado'!G31+'Inventario causa eKOGUI listado'!I31+'Inventario causa eKOGUI listado'!K31+'Inventario causa eKOGUI listado'!M31+'Inventario causa no eKOGUI'!E31+'Inventario causa no eKOGUI'!G31+'Inventario causa no eKOGUI'!I31+'Inventario causa no eKOGUI'!K31+'Inventario causa no eKOGUI'!M31","v":0},0]
[{"$nulls":4},{"$f":"IF('Inventario causa eKOGUI listado'!C32<>\"\",'Inventario causa eKOGUI listado'!C32,'Inventario causa no eKOGUI'!C32)","v":0},{"$f":"'Inventario causa eKOGUI listado'!D32+'Inventario causa eKOGUI listado'!F32+'Inventario causa eKOGUI listado'!H32+'Inventario causa eKOGUI listado'!J32+'Inventario causa eKOGUI listado'!L32+'Inventario causa no eKOGUI'!D32+'Inventario causa no eKOGUI'!F32+'Inventario causa no eKOGUI'!H32+'Inventario causa no eKOGUI'!J32+'Inventario causa no eKOGUI'!L32","v":0},{"$f":"'Inventario causa eKOGUI listado'!E32+'Inventario causa eKOGUI listado'!G32+'Inventario causa eKOGUI listado'!I32+'Inventario causa eKOGUI listado'!K32+'Inventario causa eKOGUI listado'!M32+'Inventario causa no eKOGUI'!E32+'Inventario causa no eKOGUI'!G32+'Inventario causa no eKOGUI'!I32+'Inventario causa no eKOGUI'!K32+'Inventario causa no eKOGUI'!M32","v":0},0]
[{"$nulls":4},{"$f":"IF('Inventario causa eKOGUI listado'!C33<>\"\",'Inventario causa eKOGUI listado'!C33,'Inventario causa no eKOGUI'!C33)","v":0},{"$f":"'Inventario causa eKOGUI listado'!D33+'Inventario causa eKOGUI listado'!F33+'Inventario causa eKOGUI listado'!H33+'Inventario causa eKOGUI listado'!J33+'Inventario causa eKOGUI listado'!L33+'Inventario causa no eKOGUI'!D33+'Inventario causa no eKOGUI'!F33+'Inventario causa no eKOGUI'!H33+'Inventario causa no eKOGUI'!J33+'Inventario causa no eKOGUI'!L33","v":0},{"$f":"'Inventario causa eKOGUI listado'!E33+'Inventario causa eKOGUI listado'!G33+'Inventario causa eKOGUI listado'!I33+'Inventario causa eKOGUI listado'!K33+'Inventario causa eKOGUI listado'!M33+'Inventario causa no eKOGUI'!E33+'Inventario causa no eKOGUI'!G33+'Inventario causa no eKOGUI'!I33+'Inventario causa no eKOGUI'!K33+'Inventario causa no eKOGUI'!M33","v":0},0]
[{"$nulls":4},{"$f":"IF('Inventario causa eKOGUI listado'!C34<>\"\",'Inventario causa eKOGUI listado'!C34,'Inventario causa no eKOGUI'!C34)","v":0},{"$f":"'Inventario causa eKOGUI listado'!D34+'Inventario causa eKOGUI listado'!F34+'Inventario causa eKOGUI listado'!H34+'Inventario causa eKOGUI listado'!J34+'Inventario causa eKOGUI listado'!L34+'Inventario causa no eKOGUI'!D34+'Inventario causa no eKOGUI'!F34+'Inventario causa no eKOGUI'!H34+'Inventario causa no eKOGUI'!J34+'Inventario causa no eKOGUI'!L34","v":0},{"$f":"'Inventario causa eKOGUI listado'!E34+'Inventario causa eKOGUI listado'!G34+'Inventario causa eKOGUI listado'!I34+'Inventario causa eKOGUI listado'!K34+'Inventario causa eKOGUI listado'!M34+'Inventario causa no eKOGUI'!E34+'Inventario causa no eKOGUI'!G34+'Inventario causa no eKOGUI'!I34+'Inventario causa no eKOGUI'!K34+'Inventario causa no eKOGUI'!M34","v":0},0]
[{"$nulls":4},{"$f":"IF('Inventario causa eKOGUI listado'!C35<>\"\",'Inventario causa eKOGUI listado'!C35,'Inventario causa no eKOGUI'!C35)","v":0},{"$f":"'Inventario causa eKOGUI listado'!D35+'Inventario causa eKOGUI listado'!F35+'Inventario causa eKOGUI listado'!H35+'Inventario causa eKOGUI listado'!J35+'Inventario causa eKOGUI listado'!L35+'Inventario causa no eKOGUI'!D35+'Inventario causa no eKOGUI'!F35+'Inventario causa no eKOGUI'!H35+'Inventario causa no eKOGUI'!J35+'Inventario causa no eKOGUI'!L35","v":0},{"$f":"'Inventario causa eKOGUI listado'!E35+'Inventario causa eKOGUI listado'!G35+'Inventario causa eKOGUI listado'!I35+'Inventario causa eKOGUI listado'!K35+'Inventario causa eKOGUI listado'!M35+'Inventario causa no eKOGUI'!E35+'Inventario causa no eKOGUI'!G35+'Inventario causa no eKOGUI'!I35+'Inventario causa no eKOGUI'!K35+'Inventario causa no eKOGUI'!M35","v":0},0]
[{"$nulls":4},{"$f":"IF('Inventario causa eKOGUI listado'!C36<>\"\",'Inventario causa eKOGUI listado'!C36,'Inventario causa no eKOGUI'!C36)","v":0},{"$f":"'Inventario causa eKOGUI listado'!D36+'Inventario causa eKOGUI listado'!F36+'Inventario causa eKOGUI listado'!H36+'Inventario causa eKOGUI listado'!J36+'Inventario causa eKOGUI listado'!L36+'Inventario causa no eKOGUI'!D36+'Inventario causa no eKOGUI'!F36+'Inventario causa no eKOGUI'!H36+'Inventario causa no eKOGUI'!J36+'Inventario causa no eKOGUI'!L36","v":0},{"$f":"'Inventario causa eKOGUI listado'!E36+'Inventario causa eKOGUI listado'!G36+'Inventario causa eKOGUI listado'!I36+'Inventario causa eKOGUI listado'!K36+'Inventario causa eKOGUI listado'!M36+'Inventario causa no eKOGUI'!E36+'Inventario causa no eKOGUI'!G36+'Inventario causa no eKOGUI'!I36+'Inventario causa no eKOGUI'!K36+'Inventario causa no eKOGUI'!M36","v":0},0]
[{"$nulls":4},{"$f":"IF('Inventario causa eKOGUI listado'!C37<>\"\",'Inventario causa eKOGUI listado'!C37,'Inventario causa no eKOGUI'!C37)","v":0},{"$f":"'Inventario causa eKOGUI listado'!D37+'Inventario causa eKOGUI listado'!F37+'Inventario causa eKOGUI listado'!H37+'Inventario causa eKOGUI listado'!J37+'Inventario causa eKOGUI listado'!L37+'Inventario causa no eKOGUI'!D37+'Inventario causa no eKOGUI'!F37+'Inventario causa no eKOGUI'!H37+'Inventario causa no eKOGUI'!J37+'Inventario causa no eKOGUI'!L37","v":0},{"$f":"'Inventario causa eKOGUI listado'!E37+'Inventario causa eKOGUI listado'!G37+'Inventario causa eKOGUI listado'!I37+'Inventario causa eKOGUI listado'!K37+'Inventario causa eKOGUI listado'!M37+'Inventario causa no eKOGUI'!E37+'Inventario causa no eKOGUI'!G37+'Inventario causa no eKOGUI'!I37+'Inventario causa no eKOGUI'!K37+'Inventario causa no eKOGUI'!M37","v":0},0]
[{"$nulls":4},{"$f":"IF('Inventario causa eKOGUI listado'!C38<>\"\",'Inventario causa eKOGUI listado'!C38,'Inventario causa no eKOGUI'!C38)","v":0},{"$f":"'Inventario causa eKOGUI listado'!D38+'Inventario causa eKOGUI listado'!F38+'Inventario causa eKOGUI listado'!H38+'Inventario causa eKOGUI listado'!J38+'Inventario causa eKOGUI listado'!L38+'Inventario causa no eKOGUI'!D38+'Inventario causa no eKOGUI'!F38+'Inventario causa no eKOGUI'!H38+'Inventario causa no eKOGUI'!J38+'Inventario causa no eKOGUI'!L38","v":0},{"$f":"'Inventario causa eKOGUI listado'!E38+'Inventario causa eKOGUI listado'!G38+'Inventario causa eKOGUI listado'!I38+'Inventario causa eKOGUI listado'!K38+'Inventario causa eKOGUI listado'!M38+'Inventario causa no eKOGUI'!E38+'Inventario causa no eKOGUI'!G38+'Inventario causa no eKOGUI'!I38+'Inventario causa no eKOGUI'!K38+'Inventario causa no eKOGUI'!M38","v":0},0]
[{"$nulls":4},{"$f":"IF('Inventario causa eKOGUI listado'!C39<>\"\",'Inventario causa eKOGUI listado'!C39,'Inventario causa no eKOGUI'!C39)","v":0},{"$f":"'Inventario causa eKOGUI listado'!D39+'Inventario causa eKOGUI listado'!F39+'Inventario causa eKOGUI listado'!H39+'Inventario causa eKOGUI listado'!J39+'Inventario causa eKOGUI listado'!L39+'Inventario causa no eKOGUI'!D39+'Inventario causa no eKOGUI'!F39+'Inventario causa no eKOGUI'!H39+'Inventario causa no eKOGUI'!J39+'Inventario causa no eKOGUI'!L39","v":0},{"$f":"'Inventario causa eKOGUI listado'!E39+'Inventario causa eKOGUI listado'!G39+'Inventario causa eKOGUI listado'!I39+'Inventario causa eKOGUI listado'!K39+'Inventario causa eKOGUI listado'!M39+'Inventario causa no eKOGUI'!E39+'Inventario causa no eKOGUI'!G39+'Inventario causa no eKOGUI'!I39+'Inventario causa no eKOGUI'!K39+'Inventario causa no eKOGUI'!M39","v":0},0]
[{"$nulls":4},{"$f":"IF('Inventario causa eKOGUI listado'!C40<>\"\",'Inventario causa eKOGUI listado'!C40,'Inventario causa no eKOGUI'!C40)","v":0},{"$f":"'Inventario causa eKOGUI listado'!D40+'Inventario causa eKOGUI listado'!F40+'Inventario causa eKOGUI listado'!H40+'Inventario causa eKOGUI listado'!J40+'Inventario causa eKOGUI listado'!L40+'Inventario causa no eKOGUI'!D40+'Inventario causa no eKOGUI'!F40+'Inventario causa no eKOGUI'!H40+'Inventario causa no eKOGUI'!J40+'Inventario causa no eKOGUI'!L40","v":0},{"$f":"'Inventario causa eKOGUI listado'!E40+'Inventario causa eKOGUI listado'!G40+'Inventario causa eKOGUI listado'!I40+'Inventario causa eKOGUI listado'!K40+'Inventario causa eKOGUI listado'!M40+'Inventario causa no eKOGUI'!E40+'Inventario causa no eKOGUI'!G40+'Inventario causa no eKOGUI'!I40+'Inventario causa no eKOGUI'!K40+'Inventario causa no eKOGUI'!M40","v":0},0]
[{"$nulls":4},{"$f":"IF('Inventario causa eKOGUI listado'!C41<>\"\",'Inventario causa eKOGUI listado'!C41,'Inventario causa no eKOGUI'!C41)","v":0},{"$f":"'Inventario causa eKOGUI listado'!D41+'Inventario causa eKOGUI listado'!F41+'Inventario causa eKOGUI listado'!H41+'Inventario causa eKOGUI listado'!J41+'Inventario causa eKOGUI listado'!L41+'Inventario causa no eKOGUI'!D41+'Inventario causa no eKOGUI'!F41+'Inventario causa no eKOGUI'!H41+'Inventario causa no eKOGUI'!J41+'Inventario causa no eKOGUI'!L41","v":0},{"$f":"'Inventario causa eKOGUI listado'!E41+'Inventario causa eKOGUI listado'!G41+'Inventario causa eKOGUI listado'!I41+'Inventario causa eKOGUI listado'!K41+'Inventario causa eKOGUI listado'!M41+'Inventario causa no eKOGUI'!E41+'Inventario causa no eKOGUI'!G41+'Inventario causa no eKOGUI'!I41+'Inventario causa no eKOGUI'!K41+'Inventario causa no eKOGUI'!M41","v":0},0]

{"sheet":"Pasos 2 y 3","index":6,"n_rows":35,"n_cols":3,"rows_kept":35,"merged":[[4,2,4,4],[6,2,6,4],[8,2,8,4],[10,2,10,4],[12,2,12,4],[14,2,14,4],[16,2,16,4],[17,2,20,4],[22,2,22,4],[24,2,24,4],[26,2,26,4]]}
[]
[]
[]
[]
[null,null,"2. Priorizar causa"]
{"$rows_empty":7}
[null,null,"Si realizó el inventario en la pestaña \"Inventario causa no eKOGUI\" escriba por favor la causa priorizada a continuación:"]
[]
[]
[]
[null,null,"Explique los criterios que tuvo en cuenta para priorizar la causa."]
[]
[]
[]
[]
[]
[null,null,"3. Definir el caso a evaluar"]
[]
[null,null,"3 Definir el caso a evaluar"]
[]
[null,null,"Datos básicos del proceso"]
[]
[null,null,"Tipo de acción o medio de control:"]
[]
[null,null,"N° Radicado:"]
[]
[null,null,"Despacho judicial de primera instancia:"]
[]
[null,null,"Despacho judicial de segunda instancia:"]

{"sheet":"Paso 4","index":7,"n_rows":14,"n_cols":3,"rows_kept":14,"merged":[[4,2,4,4],[6,2,6,4]]}
[]
[]
[]
[]
[null,null,"4. Participantes"]
[]
[]
[]
[]
[null,null,"Moderador"]
[]
[null,null,"Relator"]
[]
[null,null,"Otros participantes"]

{"sheet":"Paso 5","index":8,"n_rows":54,"n_cols":7,"rows_kept":54,"merged":[[4,2,4,7],[6,2,7,2],[9,4,9,6],[11,2,11,7],[14,2,18,2],[14,4,18,7],[20,2,21,2],[20,4,21,7],[23,2,27,2],[23,4,27,7],[29,2,33,2],[29,4,33,7],[35,2,39,2],[35,4,39,7],[41,2,45,2],[41,4,45,7],[47,2,51,2],[47,4,51,7],[53,2,57,2],[53,4,57,7]]}
[]
[]
[]
[]
[null,null,"5. Discutir el caso"]
[]
[null,null,"Fecha Mesa de Estudios Jurídicos",null,"Día","Mes","Año"]
[]
[]
[null,null,"Número del acta"]
[]
[]
[]
[]
[null,null,"Hechos"]
[]
[]
[]
[]
[]
[null,null,"Pretensiones"]
[]
[]
[null,null,"Actores relevantes"]
[]
[]
[]
[]
[]
[null,null,"Problema jurídico"]
[]
[]
[]
[]
[]
[null,null,"Jurisprudencia"]
[]
[]
[]
[]
[]
[null,null,"Normativa aplicable"]
[]
[]
[]
[]
[]
[null,null,"Pruebas practicadas"]
[]
[]
[]
[]
[]
[null,null,"Estrategia de defensa"]

{"sheet":"Paso 6","index":9,"n_rows":20,"n_cols":3,"rows_kept":20,"merged":[[4,2,4,4],[7,2,11,2],[7,4,11,4],[13,2,17,2],[13,4,17,4],[19,2,23,2],[19,4,23,4]]}
[]
[]
[]
[]
[null,null,"6. Elaborar las conclusiones de la evaluación"]
[]
[]
[null,null,"Lecciones aprendidas y/o aspectos a evitar en la defensa"]
[]
[]
[]
[]
[]
[null,null,"Conclusiones de la mesa de estudios"]
[]
[]
[]
[]
[]
[null,null,"Propuestas de trabajo y/o tareas pendientes"]

{"sheet":"Acta Mesa de Estudios Jurídicos","index":10,"n_rows":104,"n_cols":2,"rows_kept":104,"merged":[[4,0,4,4],[10,1,10,4],[12,0,12,4],[14,1,14,4],[16,1,16,4],[18,1,18,4],[20,1,20,4],[22,0,22,4],[24,0,28,0],[24,1,28,4],[30,0,31,0],[30,1,31,4],[33,0,37,0],[33,1,37,4],[39,0,43,0],[39,1,43,4],[45,0,49,0],[45,1,49,4],[51,0,55,0],[51,1,55,4],[57,0,61,0],[57,1,61,4],[63,0,67,0],[63,1,67,4],[69,0,69,4],[71,0,75,0],[71,1,75,4],[77,0,81,0],[77,1,81,4],[83,0,87,0],[83,1,87,4],[89,0,89,4],[91,1,91,4],[93,1,93,4],[95,1,95,4]]}
[]
[]
[]
[]
["Acta Mesa de Estudios Jurídicos"]
[]
["Fecha mesa de estudios jurídicos",{"$f":"'Paso 5'!E8&\" \"&\"de\"&\" \"&'Paso 5'!F8&\" \"&\"de\"&\" \"&'Paso 5'!G8","v":" de  de "}]
[]
["Acta N°",{"$f":"IF('Paso 5'!E10=\"\",\"\",'Paso 5'!E10)","v":""}]
[]
["Causa Priorizada",{"$f":"IF('Pasos 2 y 3'!C11<>\"\",'Pasos 2 y 3'!C11,'Pasos 2 y 3'!C15)","v":0}]
[]
["Datos básicos del proceso"]
[]
["Tipo de acción o medio de control:",{"$f":"IF('Pasos 2 y 3'!E29<>\"\",'Pasos 2 y 3'!E29,\"\")","v":""}]
[]
["N° Radicado:",{"$f":"IF('Pasos 2 y 3'!E31<>\"\",'Pasos 2 y 3'!E31,\"\")","v":""}]
[]
["Despacho judicial de primera instancia:",{"$f":"IF('Pasos 2 y 3'!E33<>\"\",'Pasos 2 y 3'!E33,\"\")","v":""}]
[]
["Despacho judicial de segunda instancia:",{"$f":"IF('Pasos 2 y 3'!E35<>\"\",'Pasos 2 y 3'!E35,\"\")","v":""}]
[]
["Discusión del caso"]
[]
["Hechos",{"$f":"IF('Paso 5'!E15<>\"\",'Paso 5'!E15,\"\")","v":""}]
[]
[]
[]
[]
[]
["Pretensiones",{"$f":"IF('Paso 5'!E21<>\"\",'Paso 5'!E21,\"\")","v":""}]
[]
[]
["Actores relevantes",{"$f":"IF('Paso 5'!E24<>\"\",'Paso 5'!E24,\"\")","v":""}]
[]
[]
[]
[]
[]
["Problema jurídico",{"$f":"IF('Paso 5'!E30<>\"\",'Paso 5'!E30,\"\")","v":""}]
[]
[]
[]
[]
[]
["Jurisprudencia",{"$f":"IF('Paso 5'!E36<>\"\",'Paso 5'!E36,\"\")","v":""}]
[]
[]
[]
[]
[]
["Normativa aplicable",{"$f":"IF('Paso 5'!E42<>\"\",'Paso 5'!E42,\"\")","v":""}]
[]
[]
[]
[]
[]
["Pruebas practicadas",{"$f":"IF('Paso 5'!E48<>\"\",'Paso 5'!E48,\"\")","v":""}]
[]
[]
[]
[]
[]
["Estrategia de defensa",{"$f":"IF('Paso 5'!E54<>\"\",'Paso 5'!E54,\"\")","v":""}]
[]
[]
[]
[]
[]
["Conclusiones de la evaluación"]
[]
["Lecciones aprendidas y/o aspectos a evitar en la defensa",{"$f":"IF('Paso 6'!E8<>\"\",'Paso 6'!E8,\"\")","v":""}]
[]
[]
[]
[]
[]
["Conclusiones de la mesa de estudios",{"$f":"IF('Paso 6'!E14<>\"\",'Paso 6'!E14,\"\")","v":""}]
[]
[]
[]
[]
[]
["Propuestas de trabajo y/o tareas pendientes",{"$f":"IF('Paso 6'!E20<>\"\",'Paso 6'!E20,\"\")","v":""}]
[]
[]
[]
[]
[]
["Participantes"]
[]
["Moderador",{"$f":"IF('Paso 4'!E10<>\"\",'Paso 4'!E10,\"\")","v":""}]
[]
["Relator",{"$f":"IF('Paso 4'!E12<>\"\",'Paso 4'!E12,\"\")","v":""}]
[]
["Otros participantes",{"$f":"IF('Paso 4'!E14<>\"\",'Paso 4'!E14,\"\")","v":""}]
[]
[]
[]
["Firma moderador:"]
[]
[]
[]
["Firma relator:"]

{"sheet":"Listado Entidades","index":11,"n_rows":261,"n_cols":13,"rows_kept":261,"hidden":true}
[]
[]
[{"$nulls":7},"Columna1"]
["ID","ENTIDAD","NOM CORTO",null,null,"N/A","ENERO",2010,"1. Conformación y funcionamiento del Comité de Conciliación.",null,"Día","Mes","Año"]
[405,"ADMINISTRADORA COLOMBIANA DE PENSIONES - COLPENSIONES","COLPENSIONES",null,null,"SI","FEBRERO",2011,"2. Gestión del Conocimiento",null,1,"Enero",2020]
[1783,"ADMINISTRADORA DE LOS RECURSOS DEL SISTEMA GENERAL DE SEGURIDAD SOCIAL EN SALUD - ADRES","ADRES",null,null,"NO","MARZO",2012,"3. Política de prevención del daño antijurídico",null,2,"febrero",2021]
[1700,"AGENCIA DE DESARROLLO RURAL - ADR","ADR",{"$nulls":3},"ABRIL",2013,"4. Conciliación y Mecanismos Alternativos de Solución de Conflictos (MASC).",null,3,"Marzo",2022]
[1772,"AGENCIA DE RENOVACIÓN DEL TERRITORIO - ART","ART",{"$nulls":3},"MAYO",2014,"5. Defensa Judicial",null,4,"Abril",2023]
[113,"AGENCIA LOGÍSTICA DE LAS FUERZAS MILITARES - ALFM","ALFM",{"$nulls":3},"JUNIO",2015,"6. Cumplimiento y pago de sentencias y conciliaciones.",null,5,"Mayo",2024]
[391,"AGENCIA NACIONAL DE CONTRATACIÓN PÚBLICA - COLOMBIA COMPRA EFICIENTE","NO APLICA",{"$nulls":3},"JULIO",2016,"7. Acción de repetición.",null,6,"Junio",2025]
[504,"AGENCIA NACIONAL DE DEFENSA JURÍDICA DEL ESTADO - ANDJE","ANDJE",{"$nulls":3},"AGOSTO",2017,null,null,7,"Julio",2026]
[179,"AGENCIA NACIONAL DE HIDROCARBUROS - ANH","ANH",{"$nulls":3},"SEPTIEMBRE",2018,null,null,8,"Agosto",2027]
[245,"AGENCIA NACIONAL DE INFRAESTRUCTURA - ANI","ANI",{"$nulls":3},"OCTUBRE",2019,null,null,9,"Septiembre",2028]
[422,"AGENCIA NACIONAL DE MINERÍA - ANM","ANM",{"$nulls":3},"NOVIEMBRE",2020,null,null,10,"Octubre",2029]
[1770,"AGENCIA NACIONAL DE SEGURIDAD VIAL - ANSV","ANSV",{"$nulls":3},"DICIEMBRE",2021,null,null,11,"Noviembre",2030]
[1699,"AGENCIA NACIONAL DE TIERRAS - ANT","ANT",{"$nulls":4},2022,null,null,12,"Diciembre"]
[390,"AGENCIA NACIONAL DEL ESPECTRO - ANE","ANE",{"$nulls":4},2023,null,null,13]
[418,"AGENCIA NACIONAL INMOBILIARIA VIRGILIO BARCO VARGAS","NO APLICA ",{"$nulls":4},2024,null,null,14]
[421,"AGENCIA PARA LA REINCORPORACIÓN Y LA NORMALIZACIÓN - ARN","ARN",{"$nulls":4},2025,null,null,15]
[420,"AGENCIA PRESIDENCIAL DE COOPERACIÓN INTERNACIONAL DE COLOMBIA - APC","APC",{"$nulls":7},16]
[108,"ARCHIVO GENERAL DE LA NACIÓN - AGN","AGN",{"$nulls":7},17]
[162,"ARTESANÍAS DE COLOMBIA S.A.","NO APLICA",{"$nulls":7},18]
[197,"AUDITORÍA GENERAL DE LA REPÚBLICA - AGR","AGR",{"$nulls":7},19]
[384,"AUTORIDAD NACIONAL DE ACUICULTURA Y PESCA - AUNAP","AUNAP",{"$nulls":7},20]
[387,"AUTORIDAD NACIONAL DE LICENCIAS AMBIENTALES - ANLA","ANLA",{"$nulls":7},21]
[55,"BANCO AGRARIO DE COLOMBIA S.A. - BANAGRARIO","BANAGRARIO",{"$nulls":7},22]
[163,"BANCO DE COMERCIO EXTERIOR DE COLOMBIA S.A. - BANCÓLDEX","BANCÓLDEX",{"$nulls":7},23]
[435,"BANCO DE LA REPÚBLICA - BANREP","BANREP",{"$nulls":7},24]
[554,"CAJA DE COMPENSACIÓN FAMILIAR CAMPESINA -COMCAJA","COMCAJA",{"$nulls":7},25]
[114,"CAJA DE RETIRO DE LAS FUERZAS MILITARES - CREMIL","CREMIL",{"$nulls":7},26]
[115,"CAJA DE SUELDOS DE RETIRO DE LA POLICÍA NACIONAL - CASUR","CASUR",{"$nulls":7},27]
[116,"CAJA PROMOTORA DE VIVIENDA MILITAR Y DE POLICÍA - CAJAHONOR","CAJAHONOR",{"$nulls":7},28]
[235,"CÁMARA DE REPRESENTANTES","NO APLICA",{"$nulls":7},29]
[453,"CANAL REGIONAL DE TELEVISIÓN DEL CARIBE LTDA - TELECARIBE","TELECARIBE",{"$nulls":7},30]
[326,"CANAL REGIONAL DE TELEVISIÓN TEVEANDINA LTDA","TV ANDINA",{"$nulls":7},31]
[532,"CENIT TRANSPORTE Y LOGÍSTICA DE HIDROCARBUROS S.A.S. - CENIT","CENIT"]
[184,"CENTRALES ELÉCTRICAS DE NARIÑO S.A. E.S.P. - CEDENAR","CEDENAR"]
[310,"CENTRALES ELÉCTRICAS DEL CAUCA S.A. E.S.P. - CEDELCA","CEDELCA"]
[215,"CENTRO DERMATOLÓGICO FEDERICO LLERAS ACOSTA E.S.E.","NO APLICA"]
[396,"CENTRO NACIONAL DE MEMORIA HISTÓRICA","NO APLICA"]
[152,"CISA - CENTRAL DE INVERSIONES S.A.","CISA"]
[117,"CLUB MILITAR DE OFICIALES","CLUB MILITAR"]
[65,"COMISIÓN DE REGULACIÓN DE AGUA POTABLE Y SANEAMIENTO BÁSICO - CRA","CRA"]
[239,"COMISIÓN DE REGULACIÓN DE COMUNICACIONES - CRC","CRC"]
[185,"COMISIÓN DE REGULACIÓN DE ENERGÍA Y GAS - CREG","CREG"]
[204,"COMISIÓN NACIONAL DEL SERVICIO CIVIL - CNSC","CNSC"]
[3017,"COMISIÓN PARA EL ESCLARECIMIENTO DE LA VERDAD, LA CONVIVENCIA Y LA NO REPETICIÓN - CEV","CEV"]
[536,"COMPUTADORES PARA EDUCAR","NO APLICA"]
[437,"CONSEJO NACIONAL ELECTORAL - CNE","CNE"]
[1633,"CONSEJO PROFESIONAL NACIONAL DE ARQUITECTURA Y SUS PROFESIONALES AUXILIARES - CPNAA","CPNAA"]
[131,"CONSEJO PROFESIONAL NACIONAL DE INGENIERÍA - COPNIA","COPNIA"]
[199,"CONTRALORÍA GENERAL DE LA REPÚBLICA - CGR","CGR"]
[75,"CORPORACIÓN AUTÓNOMA REGIONAL DE BOYACÁ - CORPOBOYACÁ","CORPOBOYACÁ"]
[76,"CORPORACIÓN AUTÓNOMA REGIONAL DE CALDAS - CORPOCALDAS","CORPOCALDAS"]
[77,"CORPORACIÓN AUTÓNOMA REGIONAL DE CHIVOR - CORPOCHIVOR","CORPOCHIVOR"]
[78,"CORPORACIÓN AUTÓNOMA REGIONAL DE CUNDINAMARCA - CAR","CAR"]
[79,"CORPORACIÓN AUTÓNOMA REGIONAL DE LA FRONTERA NORORIENTAL - CORPONOR","CORPONOR"]
[80,"CORPORACIÓN AUTÓNOMA REGIONAL DE LA GUAJIRA - CORPOGUAJIRA","CORPOGUAJIRA"]
[81,"CORPORACIÓN AUTÓNOMA REGIONAL DE LA ORINOQUIA - CORPORINOQUIA","CORPORINOQUIA"]
[82,"CORPORACIÓN AUTÓNOMA REGIONAL DE LAS CUENCAS DE LOS RIOS NEGRO Y NARE – CORNARE","CORNARE"]
[84,"CORPORACIÓN AUTÓNOMA REGIONAL DE LOS VALLES DEL SINÚ Y DEL SAN JORGE - CVS","CVS"]
[85,"CORPORACIÓN AUTÓNOMA REGIONAL DE NARIÑO - CORPONARIÑO","CORPONARIÑO"]
[101,"CORPORACIÓN AUTÓNOMA REGIONAL DE RISARALDA - CARDER","CARDER"]
[102,"CORPORACIÓN AUTÓNOMA REGIONAL DE SANTANDER - CAS","CAS"]
[86,"CORPORACIÓN AUTÓNOMA REGIONAL DEL ALTO MAGDALENA - CAM","CAM"]
[284,"CORPORACIÓN AUTÓNOMA REGIONAL DEL ATLÁNTICO - CRA","CRA"]
[83,"CORPORACIÓN AUTÓNOMA REGIONAL DEL CANAL DEL DIQUE - CARDIQUE","CARDIQUE"]
[87,"CORPORACIÓN AUTÓNOMA REGIONAL DEL CAUCA - CRC","CRC"]
[103,"CORPORACIÓN AUTÓNOMA REGIONAL DEL CENTRO DE ANTIOQUIA - CORANTIOQUIA","CORANTIOQUIA"]
[288,"CORPORACIÓN AUTÓNOMA REGIONAL DEL CESAR - CORPOCESAR","CORPOCESAR"]
[89,"CORPORACIÓN AUTÓNOMA REGIONAL DEL GUAVIO - CORPOGUAVIO","CORPOGUAVIO"]
[90,"CORPORACIÓN AUTÓNOMA REGIONAL DEL MAGDALENA - CORPAMAG","CORPAMAG"]
[98,"CORPORACIÓN AUTÓNOMA REGIONAL DEL QUINDÍO - CRQ","CRQ"]
[91,"CORPORACIÓN AUTÓNOMA REGIONAL DEL RÍO GRANDE DE LA MAGDALENA - CORMAGDALENA","CORMAGDALENA"]
[92,"CORPORACIÓN AUTÓNOMA REGIONAL DEL SUCRE - CARSUCRE","CARSUCRE"]
[289,"CORPORACIÓN AUTÓNOMA REGIONAL DEL SUR DE BOLÍVAR - CSB","CARCSB"]
[93,"CORPORACIÓN AUTÓNOMA REGIONAL DEL TOLIMA - CORTOLIMA","CORTOLIMA"]
[285,"CORPORACIÓN AUTÓNOMA REGIONAL DEL VALLE DEL CAUCA - CVC","CVC"]
[106,"CORPORACIÓN AUTÓNOMA REGIONAL PARA EL DESARROLLO SOSTENIBLE DEL CHOCO - CODECHOCÓ","CODECHOCÓ"]
[94,"CORPORACIÓN AUTÓNOMA REGIONAL PARA LA DEFENSA DE LA MESETA DE BUCARAMANGA - CDMB","CDMB"]
[465,"CORPORACIÓN COLOMBIANA DE INVESTIGACIÓN AGROPECUARIA - AGROSAVIA","AGROSAVIA"]
[1523,"CORPORACIÓN DE ALTA TECNOLOGÍA PARA LA DEFENSA - CODALTEC","CODALTEC"]
[461,"CORPORACIÓN DE CIENCIA Y TECNOLOGÍA PARA EL DESARROLLO DE LA INDUSTRIA NAVAL MARÍTIMA Y FLUVIAL - COTECMAR","COTECMAR"]
[118,"CORPORACION DE LA INDUSTRIA AERONÁUTICA COLOMBIANA S.A. - CIAC","CIAC"]
[176,"CORPORACIÓN NACIONAL PARA LA RECONSTRUCCIÓN DE LA CUENCA DEL RÍO PÁEZ Y ZONAS ALEDANAS - NASA KIWE","NASA KIWE"]
[97,"CORPORACIÓN PARA EL DESARROLLO SOSTENIBLE DE LA MOJANA Y EL SAN JORGE - CORPOMOJANA","CORPOMOJANA"]
[95,"CORPORACIÓN PARA EL DESARROLLO SOSTENIBLE DEL ARCHIPIÉLAGO DE SAN ANDRÉS PROVIDENCIA Y SANTA CATALINA - CORALINA","CORALINA"]
[96,"CORPORACIÓN PARA EL DESARROLLO SOSTENIBLE DEL ÁREA DE MANEJO ESPECIAL LA MACARENA - CORMACARENA","CORMACARENA"]
[104,"CORPORACIÓN PARA EL DESARROLLO SOSTENIBLE DEL NORTE Y ORIENTE AMAZÓNICO - CDA","CDA"]
[107,"CORPORACIÓN PARA EL DESARROLLO SOSTENIBLE DEL SUR DE LA AMAZONÍA - CORPOAMAZONÍA","CORPOAMAZONÍA"]
[99,"CORPORACIÓN PARA EL DESARROLLO SOSTENIBLE DEL URABÁ - CORPOURABÁ","CORPOURABÁ"]
[120,"DEFENSA CIVIL COLOMBIANA","NO APLICA"]
[200,"DEFENSORÍA DEL PUEBLO","NO APLICA"]
[424,"DEPARTAMENTO ADMINISTRATIVO DE DIRECCIÓN NACIONAL DE INTELIGENCIA","NO APLICA"]
[150,"DEPARTAMENTO ADMINISTRATIVO DE LA FUNCIÓN PÚBLICA - DAFP","DAFP"]
[210,"DEPARTAMENTO ADMINISTRATIVO DE LA PRESIDENCIA DE LA REPÚBLICA - DAPRE","DAPRE"]
[148,"DEPARTAMENTO ADMINISTRATIVO NACIONAL DE ESTADÍSTICA - DANE","DANE"]
[394,"DEPARTAMENTO ADMINISTRATIVO PARA LA PROSPERIDAD SOCIAL - DPS","DPS"]
[205,"DEPARTAMENTO NACIONAL DE PLANEACIÓN - DNP","DNP"]
[426,"DIRECCIÓN EJECUTIVA DE ADMINISTRACIÓN JUDICIAL - DEAJ","DEAJ"]
[125,"DIRECCIÓN GENERAL DE LA POLICÍA NACIONAL - PONAL","PONAL"]
[1634,"DIRECCIÓN NACIONAL DE BOMBEROS DE COLOMBIA - DNBC","DNBC"]
[172,"DIRECCIÓN NACIONAL DE DERECHOS DE AUTOR - DNDA","DNDA"]
[186,"ELECTRIFICADORA DEL CAQUETÁ S.A. E.S.P - ELECTROCAQUETÁ","ELECTROCAQUETÁ"]
[478,"ELECTRIFICADORA DEL HUILA S.A. E.S.P. - ELECTROHUILA","ELECTROHUILA"]
[335,"ELECTRIFICADORA DEL META S.A. E.S.P - EMSA","EMSA"]
[188,"EMPRESA COLOMBIANA DE PETRÓLEOS - ECOPETROL","ECOPETROL"]
[67,"EMPRESA COLOMBIANA DE PRODUCTOS VETERINARIOS S.A. - VECOL","VECOL"]
[471,"EMPRESA DE ENERGÍA DEL ARCHIPIÉLAGO DE SAN ANDRÉS, PROVIDENCIA Y SANTA CATALINA S.A. E.S.P. - EEDAS","EEDAS S.A. E.S.P."]
[472,"EMPRESA DISTRIBUIDORA DEL PACIFICO S.A. E.S.P.","DISPAC"]
[411,"EMPRESA INDUSTRIAL Y COMERCIAL DEL ESTADO ADMINISTRADORA DEL MONOPOLIO RENTÍSTICO DE LOS JUEGOS DE SUERTE Y AZAR - COLJUEGOS","COLJUEGOS"]
[206,"EMPRESA NACIONAL PROMOTORA DEL DESARROLLO TERRITORIAL - ENTERRITORIO","ENTERRITORIO"]
[473,"EMPRESA PÚBLICA DE ALCANTARILLADO DE SANTANDER S.A. E.S.P. - EMPAS","EMPAS S.A. E.S.P."]
[484,"EMPRESA URRÁ S.A. E.S.P.","URRÁ"]
[151,"ESCUELA SUPERIOR DE ADMINISTRACIÓN PÚBLICA - ESAP","ESAP"]
[145,"ESCUELA TECNOLÓGICA INSTITUTO TÉCNICO CENTRAL - ITC","ITC"]
[1787,"ESENTTIA S.A.","ESENTTIA"]
[2989,"ESSENTIA MASTERBATCH LTDA","NO APLICA"]
[164,"FIDUCIARIA COLOMBIANA DE COMERCIO EXTERIOR S.A. - FIDUCOLDEX","FIDUCOLDEX"]
[154,"FIDUCIARIA LA PREVISORA S.A. - FIDUPREVISORA","FIDUPREVISORA"]
[190,"FINANCIERA DE DESARROLLO NACIONAL - FDN","FDN"]
[155,"FINANCIERA DE DESARROLLO TERRITORIAL S.A. - FINDETER","FINDETER"]
[232,"FISCALÍA GENERAL DE LA NACIÓN","NO APLICA"]
[438,"FONDO ADAPTACIÓN","NO APLICA"]
[201,"FONDO DE BIENESTAR SOCIAL DE LA CONTRALORÍA GENERAL DE LA REPÚBLICA","NO APLICA"]
[132,"FONDO DE DESARROLLO DE LA EDUCACIÓN SUPERIOR - FODESEP","FODESEP"]
[156,"FONDO DE GARANTÍAS DE ENTIDADES COOPERATIVAS - FOGACOOP","FOGACOOP"]
[165,"FONDO DE GARANTÍAS DE INSTITUCIONES FINANCIERAS - FOGAFÍN","FOGAFÍN"]
[217,"FONDO DE PASIVO SOCIAL DE FERROCARRILES NACIONALES DE COLOMBIA - FPS","FPS"]
[218,"FONDO DE PREVISIÓN SOCIAL DEL CONGRESO DE LA  REPÚBLICA - FONPRECON","FONPRECON"]
[240,"FONDO DE TECNOLOGÍAS DE LA INFORMACIÓN Y LAS COMUNICACIONES - FONTIC","FONTIC"]
[306,"FONDO NACIONAL AMBIENTAL - FONAM","FONAM"]
[166,"FONDO NACIONAL DE GARANTÍAS S.A. - FNG","FNG"]
[307,"FONDO NACIONAL DE VIVIENDA - FONVIVIENDA","FONVIVIENDA"]
[66,"FONDO NACIONAL DEL AHORRO – FNA","FNA"]
[61,"FONDO PARA EL FINANCIAMIENTO DEL SECTOR AGROPECUARIO - FINAGRO","FINAGRO"]
[121,"FONDO ROTATORIO DE LA POLICÍA NACIONAL - FORPO","FORPO"]
[317,"FONDO ROTATORIO DE LA REGISTRADURÍA NACIONAL DEL ESTADO CIVIL","NO APLICA"]
[236,"FONDO ROTATORIO DEL MINISTERIO DE RELACIONES EXTERIORES","NO APLICA"]
[448,"FONDO SOCIAL DE VIVIENDA DE LA REGISTRADURÍA NACIONAL DEL ESTADO CIVIL","NO APLICA"]
[191,"GENERADORA Y COMERCIALIZADORA DEL CARIBE S.A E.S.P. - GECELCA","GECELCA"]
[474,"GESTION ENERGETICA S.A. E.S.P. - GENSA","GENSA"]
[122,"HOSPITAL MILITAR CENTRAL","NO APLICA"]
[173,"IMPRENTA NACIONAL DE COLOMBIA","NO APLICA"]
[119,"INDUSTRIA MILITAR - INDUMIL","INDUMIL"]
[490,"INSTITUTO AMAZÓNICO DE INVESTIGACIONES CIENTÍFICAS - SINCHI","SINCHI"]
[109,"INSTITUTO CARO Y CUERVO","NO APLICA"]
[57,"INSTITUTO COLOMBIANO AGROPECUARIO - ICA","ICA"]
[110,"INSTITUTO COLOMBIANO DE ANTROPOLOGÍA E HISTORIA - ICANH","ICANH"]
[219,"INSTITUTO COLOMBIANO DE BIENESTAR FAMILIAR - ICBF","ICBF"]
[134,"INSTITUTO COLOMBIANO DE CRÉDITO Y ESTUDIOS TÉCNICOS EN EL EXTERIOR - ICETEX","ICETEX "]
[135,"INSTITUTO COLOMBIANO PARA LA EVALUACIÓN DE LA EDUCACIÓN - ICFES","ICFES"]
[123,"INSTITUTO DE CASAS FISCALES DEL EJÉRCITO - ICFE","ICFE"]
[64,"INSTITUTO DE HIDROLOGÍA, METEOROLOGÍA Y ESTUDIOS AMBIENTALES - IDEAM","IDEAM"]
[72,"INSTITUTO DE INVESTIGACIÓN DE RECURSOS BIOLÓGICOS ALEXANDER VON HUMBOLDT","HUMBOLDT"]
[491,"INSTITUTO DE INVESTIGACIONES AMBIENTALES DEL PACÍFICO JOHN VON NEUMANN","IIAP"]
[193,"INSTITUTO DE PLANIFICACIÓN Y PROMOCIÓN DE SOLUCIONES ENERGÉTICAS PARA LAS ZONAS NO INTERCONECTADAS – IPSE","IPSE"]
[149,"INSTITUTO GEOGRÁFICO AGUSTÍN CODAZZI - IGAC","IGAC"]
[221,"INSTITUTO NACIONAL DE CANCEROLOGÍA E.S.E. - INC","INC"]
[141,"INSTITUTO NACIONAL DE FORMACIÓN TÉCNICA PROFESIONAL DE SAN JUAN DEL CESAR - INFOTEP","INFOTEP"]
[137,"INSTITUTO NACIONAL DE FORMACIÓN TÉCNICA PROFESIONAL DEL DEPARTAMENTO DE SAN ANDRÉS, PROVIDENCIA Y SANTA CATALINA - INFOTEP","INFOTEP SAN ANDRÉS"]
[233,"INSTITUTO NACIONAL DE MEDICINA LEGAL Y CIENCIAS FORENSES","NO APLICA"]
[423,"INSTITUTO NACIONAL DE METROLOGÍA - INM","INM"]
[222,"INSTITUTO NACIONAL DE SALUD - INS","INS"]
[246,"INSTITUTO NACIONAL DE VÍAS - INVÍAS","INVÍAS"]
[223,"INSTITUTO NACIONAL DE VIGILANCIA DE MEDICAMENTOS Y ALIMENTOS - INVIMA","INVIMA"]
[138,"INSTITUTO NACIONAL PARA CIEGOS - INCI","INCI"]
[139,"INSTITUTO NACIONAL PARA SORDOS - INSOR","INSOR"]
[174,"INSTITUTO NACIONAL PENITENCIARIO Y CARCELARIO - INPEC","INPEC"]
[142,"INSTITUTO TÉCNICO NACIONAL DE COMERCIO SIMÓN RODRÍGUEZ - INTENALCO","INTENALCO"]
[146,"INSTITUTO TOLIMENSE DE FORMACIÓN TÉCNICA PROFESIONAL - ITFIP","ITFIP"]
[194,"INTERCONEXIÓN ELÉCTRICA S.A. E.S.P - ISA","ISA"]
[338,"INTERNEXA S.A.","NO APLICA"]
[557,"ISA INTERCOLOMBIA S.A. E.S.P.","INTERCOLOLOMBIA"]
[2921,"JURISDICCIÓN ESPECIAL PARA LA PAZ - JEP","JEP"]
[157,"LA PREVISORA S.A. COMPAÑÍA DE SEGUROS","PREVISORA"]
[63,"MINISTERIO DE AGRICULTURA Y DESARROLLO RURAL - MINAGRICULTURA","MINAGRICULTURA"]
[386,"MINISTERIO DE AMBIENTE Y DESARROLLO SOSTENIBLE - MINAMBIENTE","MINAMBIENTE"]
[297,"MINISTERIO DE CIENCIA, TECNOLOGÍA E INNOVACIÓN","MINCIENCIAS"]
[169,"MINISTERIO DE COMERCIO, INDUSTRIA Y TURISMO - MINCIT","MINCIT"]
[112,"MINISTERIO DE CULTURA","MINCULTURA"]
[124,"MINISTERIO DE DEFENSA NACIONAL - MINDEFENSA","MINDEFENSA"]
[147,"MINISTERIO DE EDUCACIÓN NACIONAL - MEN","MEN"]
[348,"MINISTERIO DE HACIENDA Y CRÉDITO PÚBLICO - MINHACIENDA","MINHACIENDA"]
[415,"MINISTERIO DE JUSTICIA Y EL DERECHO - MINJUSTICIA","MINJUSTICIA"]
[196,"MINISTERIO DE MINAS Y ENERGÍA - MINMINAS","MINMINAS"]
[237,"MINISTERIO DE RELACIONES EXTERIORES - CANCILLERÍA","CANCILLERÍA"]
[401,"MINISTERIO DE SALUD Y PROTECCIÓN SOCIAL - MINSALUD","MINSALUD"]
[242,"MINISTERIO DE TECNOLOGÍAS DE LA INFORMACIÓN Y LAS COMUNICACIONES - MINTIC","MINTIC"]
[403,"MINISTERIO DE TRABAJO - MINTRABAJO","MINTRABAJO"]
[247,"MINISTERIO DE TRANSPORTE - MINTRANSPORTE","MINTRANSPORTE"]
[389,"MINISTERIO DE VIVIENDA, CIUDAD Y TERRITORIO - MINVIVIENDA","MINVIVIENDA"]
[111,"MINISTERIO DEL DEPORTE","MINDEPORTES"]
[407,"MINISTERIO DEL INTERIOR Y FONDO PARA LA PARTICIPACIÓN Y EL FORTALECIMIENTO DE LA DEMOCRACIA - MININTERIOR","MININTERIOR"]
[525,"OLEODUCTO BICENTENARIO DE COLOMBIA S.A.S.","NO APLICA"]
[485,"OLEODUCTO CENTRAL S.A.- OCENSA","OCENSA"]
[486,"OLEODUCTO DE COLOMBIA S.A.","NO APLICA"]
[74,"PARQUES NACIONALES NATURALES DE COLOMBIA","NO APLICA"]
[158,"POSITIVA COMPAÑÍA DE SEGUROS S.A.","POSITIVA"]
[202,"PROCURADURÍA GENERAL DE LA NACIÓN - PGN","PGN"]
[244,"RADIO TELEVISIÓN NACIONAL DE COLOMBIA - RTVC","RTVC"]
[487,"REFINERÍA DE CARTAGENA S.A.S - REFICAR","REFICAR"]
[203,"REGISTRADURÍA NACIONAL DEL ESTADO CIVIL ","NO APLICA"]
[225,"SANATORIO DE AGUA DE DIOS E.S.E.","NO APLICA"]
[226,"SANATORIO DE CONTRATACIÓN E.S.E.","NO APLICA"]
[234,"SENADO DE LA REPÚBLICA","SENADO"]
[126,"SERVICIO AÉREO A TERRITORIOS NACIONALES - SATENA","SATENA"]
[192,"SERVICIO GEOLÓGICO COLOMBIANO - SGC","SGC"]
[227,"SERVICIO NACIONAL DE APRENDIZAJE - SENA","SENA"]
[243,"SERVICIOS POSTALES NACIONALES S.A. - 4-72","1972-04-01"]
[458,"SISTEMAS INTELIGENTES EN RED","NO APLICA"]
[442,"SOCIEDAD DE ACTIVOS ESPECIALES S.A.S. - SAE","SAE"]
[441,"SOCIEDAD DE TELEVISIÓN DE CALDAS, RISARALDA Y QUINDÍO LTDA - TELECAFÉ","TELECAFÉ LTDA"]
[56,"SOCIEDAD FIDUCIARIA DE DESARROLLO AGROPECUARIO S.A. - FIDUAGRARIA","FIDUAGRARIA"]
[127,"SOCIEDAD HOTELERA TEQUENDAMA S.A. - SHT","SHT"]
[170,"SUPERINTENDENCIA DE INDUSTRIA Y COMERCIO - SIC","SIC"]
[130,"SUPERINTENDENCIA DE LA ECONOMÍA SOLIDARIA - SUPERSOLIDARIA","SUPERSOLIDARIA"]
[175,"SUPERINTENDENCIA DE NOTARIADO Y REGISTRO - SUPERNOTARIADO","SUPERNOTARIADO"]
[248,"SUPERINTENDENCIA DE PUERTOS Y TRANSPORTE - SUPERTRANSPORTE","SUPERTRANSPORTE"]
[209,"SUPERINTENDENCIA DE SERVICIOS PÚBLICOS DOMICILIARIOS - SUPESERVICIOS","SUPESERVICIOS"]
[171,"SUPERINTENDENCIA DE SOCIEDADES - SUPERSOCIEDADES","SUPERSOCIEDADES"]
[128,"SUPERINTENDENCIA DE VIGILANCIA Y SEGURIDAD PRIVADA - SUPERVIGILANCIA","SUPERVIGILANCIA"]
[228,"SUPERINTENDENCIA DEL SUBSIDIO FAMILIAR - SUPERSUBSIDIO","SUPERSUBSIDIO"]
[159,"SUPERINTENDENCIA FINANCIERA DE COLOMBIA - SUPERFINANCIERA","SUPERFINANCIERA"]
[229,"SUPERINTENDENCIA NACIONAL DE SALUD - SUPERSALUD","SUPERSALUD"]
[475,"TRANSELCA S.A. E.S.P.","TRANSELCA"]
[534,"UNIDAD ADMINISTRATIVA ESPECIAL AGENCIA DEL INSPECTOR GENERAL DE TRIBUTOS, RENTAS Y CONTRIBUCIONES PARAFISCALES - ITRC","ITRC"]
[323,"UNIDAD ADMINISTRATIVA ESPECIAL CONTADURÍA GENERAL DE LA NACIÓN - CGN","CGN"]
[249,"UNIDAD ADMINISTRATIVA ESPECIAL DE AERONÁUTICA CIVIL - AEROCIVIL","AEROCIVIL"]
[467,"UNIDAD ADMINISTRATIVA ESPECIAL DE GESTIÓN DE RESTITUCIÓN DE TIERRAS DESPOJADAS","NO APLICA"]
[433,"UNIDAD ADMINISTRATIVA ESPECIAL DE GESTIÓN PENSIONAL Y CONTRIBUCIONES PARAFISCALES DE LA PROTECCIÓN SOCIAL - UGPP","UGPP"]
[404,"UNIDAD ADMINISTRATIVA ESPECIAL DE ORGANIZACIONES SOLIDARIAS - UAEOS","UAEOS"]
[1676,"UNIDAD ADMINISTRATIVA ESPECIAL DEL SERVICIO PÚBLICO DE EMPLEO","UAESPE"]
[309,"UNIDAD ADMINISTRATIVA ESPECIAL DIRECCIÓN DE IMPUESTOS Y ADUANAS NACIONALES - DIAN","DIAN"]
[445,"UNIDAD ADMINISTRATIVA ESPECIAL JUNTA CENTRAL DE CONTADORES","NO APLICA"]
[409,"UNIDAD ADMINISTRATIVA ESPECIAL MIGRACIÓN COLOMBIA","NO APLICA"]
[395,"UNIDAD ADMINISTRATIVA ESPECIAL PARA LA ATENCIÓN Y LA REPARACIÓN INTEGRAL A LAS VÍCTIMAS","NO APLICA"]
[161,"UNIDAD DE INFORMACIÓN Y ANÁLISIS FINANCIERO - UIAF","UIAF"]
[195,"UNIDAD DE PLANEACIÓN MINERO ENERGÉTICA - UPME","UPME"]
[383,"UNIDAD DE PLANIFICACIÓN DE TIERRAS RURALES, ADECUACIÓN DE TIERRAS Y USOS AGROPECUARIOS - UPRA","UPRA"]
[417,"UNIDAD DE SERVICIOS PENITENCIARIOS Y CARCELARIOS - USPEC","USPEC"]
[3009,"UNIDAD ESPECIAL PARA LA BÚSQUEDA DE PERSONAS DADAS POR DESAPARECIDAS EN EL CONTEXTO Y EN RAZÓN DEL CONFLICTO ARMADO - UBPD","UBPD"]
[408,"UNIDAD NACIONAL DE PROTECCIÓN - UNP","UNP"]
[419,"UNIDAD NACIONAL PARA LA GESTIÓN DEL RIESGO DE DESASTRES - UNGRD","UNGRD"]
[250,"UNIVERSIDAD COLEGIO MAYOR DE CUNDINAMARCA - UNICOLMAYOR","UNICOLMAYOR"]
[251,"UNIVERSIDAD DE CALDAS - UCALDAS","UCALDAS"]
[468,"UNIVERSIDAD DE CÓRDOBA - UNICÓRDOBA","UNICÓRDOBA"]
[252,"UNIVERSIDAD DE LA AMAZONÍA - UNIAMAZONÍA","UNIAMAZONÍA"]
[253,"UNIVERSIDAD DE LOS LLANOS - UNILLANOS","UNILLANOS"]
[254,"UNIVERSIDAD DEL CAUCA - UNICAUCA","UNICAUCA"]
[255,"UNIVERSIDAD DEL PACÍFICO - UNIPACÍFICO ","UNIPACÍFICO "]
[256,"UNIVERSIDAD MILITAR NUEVA GRANADA - UMNG","UMNG"]
[258,"UNIVERSIDAD NACIONAL ABIERTA Y A DISTANCIA - UNAD","UNAD"]
[278,"UNIVERSIDAD NACIONAL DE COLOMBIA - UNAL","UNAL"]
[262,"UNIVERSIDAD PEDAGÓGICA NACIONAL - UPN","UPN"]
[260,"UNIVERSIDAD PEDAGÓGICA Y TECNOLÓGICA DE COLOMBIA - UPTC","UPTC"]
[264,"UNIVERSIDAD POPULAR DEL CESAR - UNICESAR","UNICESAR"]
[261,"UNIVERSIDAD SURCOLOMBIANA - USCO","USCO"]
[259,"UNIVERSIDAD TECNOLÓGICA DE PEREIRA - UTP","UTP"]
[263,"UNIVERSIDAD TECNOLÓGICA DEL CHOCÓ DIEGO LUIS CÓRDOBA - UTCH","UTCH"]
[336,"XM COMPAÑÍA DE EXPERTOS EN MERCADOS S.A. E.S.P.","XM"]

{"sheet":"Causa eKOGUI","index":12,"n_rows":700,"n_cols":2,"rows_kept":700,"hidden":true}
[]
["ID CAUSA","CAUSAS eKOGUI "]
[71,"ACCESION POR ALUVION"]
[72,"ACCESO CARNAL O ACTO SEXUAL CON INCAPAZ DE RESISTIR"]
[73,"ACCESO CARNAL O ACTO SEXUAL VIOLENTO"]
[74,"ACCIDENTE DE TRABAJO O ENFERMEDAD PROFESIONAL POR CULPA PATRONAL"]
[1066,"ACOSO LABORAL"]
[76,"ACOSO SEXUAL"]
[78,"ACTOS SEXUALES CON MENOR DE CATORCE AÑOS"]
[80,"ALLANAMIENTO ILEGAL"]
[82,"APREHENSION ILEGAL DE MERCANCIAS"]
[85,"CADUCIDAD DE LA ACCION SANCIONATORIA ADUANERA"]
[86,"CAPITALIZACION DE INTERESES"]
[87,"CAPTACION ILEGAL DE DINERO"]
[88,"CAUSA DIAN POR DEFINIR"]
[89,"COBRO INDEBIDO DE OBLIGACION"]
[90,"COMPETENCIA DESLEAL"]
[1082,"CONFIGURACION DEL CONTRATO REALIDAD"]
[92,"CONSTITUCION DE SERVIDUMBRE"]
[94,"CONTROVERSIAS SOBRE LAUDO ARBITRAL"]
[96,"CUMPLIMIENTO DE REQUISITOS LEGALES PARA LEVANTAMIENTO DE FUERO SINDICAL"]
[97,"CUMPLIMIENTO DE REQUISITOS LEGALES PARA LEVANTAMIENTO DE FUERO SINDICAL EN PROCESOS DE REESTRUCTURACION Y LIQUIDACION DE ENTIDADES PUBLICAS"]
[106,"DAÑO O AMENAZA AMBIENTAL POR ACTIVIDAD AGROPECUARIA"]
[107,"DAÑO O AMENAZA AMBIENTAL POR ACTIVIDAD DEL SECTOR DE HIDROCARBUROS"]
[108,"DAÑO O AMENAZA AMBIENTAL POR ACTIVIDAD INDUSTRIAL"]
[109,"DAÑO O AMENAZA AMBIENTAL POR ACTIVIDAD MINERA"]
[110,"DAÑO O AMENAZA AMBIENTAL POR ACTO TERRORISTA"]
[111,"DAÑO O AMENAZA AMBIENTAL POR CONTAMINACION AUDITIVA"]
[112,"DAÑO O AMENAZA AMBIENTAL POR CONTAMINACION POR OLORES"]
[113,"DAÑO O AMENAZA AMBIENTAL POR DESVIACION DEL CAUCE DE UN RIO"]
[114,"DAÑO O AMENAZA AMBIENTAL POR DISPOSICION FINAL DE RESIDUOS NUCLEARES"]
[115,"DAÑO O AMENAZA AMBIENTAL POR DISPOSICION FINAL DE RESIDUOS SOLIDOS"]
[116,"DAÑO O AMENAZA AMBIENTAL POR EJECUCION DE OBRA PUBLICA"]
[118,"DAÑO O AMENAZA AMBIENTAL POR ERRADICACION DE CULTIVOS ILICITOS"]
[119,"DAÑO O AMENAZA AMBIENTAL POR INCENDIO FORESTAL"]
[120,"DAÑO O AMENAZA AMBIENTAL POR INDEBIDA DISPOSICION DE DESECHOS HOSPITALARIOS"]
[121,"DAÑO O AMENAZA AMBIENTAL POR TALA MASIVA DE ARBOLES"]
[122,"DAÑO O AMENAZA AMBIENTAL POR VERTIMIENTO DE CONTAMINANTES"]
[123,"DAÑOS A BIENES CON AERONAVE OFICIAL"]
[124,"DAÑOS A BIENES CON ARMA DE DOTACION OFICIAL"]
[125,"DAÑOS A BIENES CON NAVE OFICIAL"]
[126,"DAÑOS A BIENES CON VEHICULO OFICIAL"]
[127,"DAÑOS A BIENES EN ACCIDENTE AEREO"]
[128,"DAÑOS A BIENES EN ACCIDENTE FLUVIAL"]
[129,"DAÑOS A BIENES EN ACCIDENTE MARITIMO"]
[130,"DAÑOS A BIENES EN COMBATE O ENFRENTAMIENTO"]
[131,"DAÑOS A BIENES EN ENFRENTAMIENTO ENTRE TROPAS"]
[132,"DAÑOS A BIENES EN ESTABLECIMIENTO EDUCATIVO"]
[133,"DAÑOS A BIENES EN MANIFESTACION PUBLICA"]
[134,"DAÑOS A BIENES EN OPERACION ADMINISTRATIVA"]
[135,"DAÑOS A BIENES EN OPERATIVO MILITAR"]
[136,"DAÑOS A BIENES EN ZONA DE DISTENSION"]
[137,"DAÑOS A BIENES POR ACTIVIDAD DEL SECTOR DE HIDROCARBUROS"]
[138,"DAÑOS A BIENES POR ACTIVIDAD MINERA"]
[139,"DAÑOS A BIENES POR ACTO TERRORISTA CONTRA INSTALACIONES, PERSONAJES O ELEMENTOS REPRESENTATIVOS DEL ESTADO"]
[140,"DAÑOS A BIENES POR ACTO TERRORISTA CONTRA POBLACION CIVIL"]
[141,"DAÑOS A BIENES POR ALUD DE TIERRA"]
[142,"DAÑOS A BIENES POR CAIDA DE ARBOL"]
[143,"DAÑOS A BIENES POR CONDUCCION DE ENERGIA ELECTRICA"]
[144,"DAÑOS A BIENES POR EJECUCION DE OBRA PUBLICA"]
[145,"DAÑOS A BIENES POR FALTA DE ADOPCION DE MEDIDAS DE PROTECCION Y SEGURIDAD"]
[146,"DAÑOS A BIENES POR FALTA DE ILUMINACION EN LA VIA PUBLICA"]
[147,"DAÑOS A BIENES POR FALTA DE SEÑALIZACION EN LA VIA PUBLICA"]
[148,"DAÑOS A BIENES POR INDEBIDA O INSUFICIENTE ADOPCION DE MEDIDAS DE PROTECCION Y SEGURIDAD"]
[149,"DAÑOS A BIENES POR INUNDACION"]
[150,"DAÑOS A BIENES POR MODIFICACION O REDUCCION DE LAS MEDIDAS DE PROTECCION Y SEGURIDAD"]
[151,"DAÑOS A BIENES POR RUINA DE EDIFICACION PUBLICA"]
[152,"DAÑOS A BIENES POR SEMOVIENTE DE PROPIEDAD DEL ESTADO"]
[153,"DAÑOS A BIENES POR USO EXCESIVO DE LA FUERZA"]
[154,"DAÑOS A BIENES POR VIA PUBLICA EN MAL ESTADO"]
[156,"DAÑOS CAUSADOS A BIENES EN PROCEDIMIENTO DE POLICIA"]
[157,"DAÑOS CAUSADOS A BIENES POR GRUPO ARMADO ILEGAL"]
[165,"DAÑOS CAUSADOS A FUNCIONARIO DE CARRERA ADMINISTRATIVA DURANTE LOS PROCESOS DE REESTRUCTURACION Y LIQUIDACION DE ENTIDADES PUBLICAS"]
[166,"DAÑOS CAUSADOS A FUNCIONARIO DE LIBRE NOMBRAMIENTO Y REMOCION DURANTE LOS PROCESOS DE REESTRUCTURACION Y LIQUIDACION DE ENTIDADES PUBLICAS"]
[167,"DAÑOS CAUSADOS A FUNCIONARIO EN PROVISIONALIDAD DURANTE LOS PROCESOS DE REESTRUCTURACION Y LIQUIDACION DE ENTIDADES PUBLICAS"]
[181,"DAÑOS CAUSADOS POR MEDIDA DE EXTINCION DE DOMINIO"]
[185,"DAÑOS DERIVADOS DE ACTO ADMINISTRATIVO LICITO"]
[186,"DAÑOS DERIVADOS DE LA ACTIVIDAD LEGISLATIVA"]
[202,"DECRETO INJUSTO DE MEDIDAS CAUTELARES SOBRE BIENES SUSCEPTIBLES DE COMISO EN PROCESOS PENALES"]
[203,"DEFECTUOSO FUNCIONAMIENTO DE LA ADMINISTRACION DE JUSTICIA"]
[205,"DENEGACION DE PETICION DE EXTENSION DE JURISPRUDENCIA"]
[206,"DESAPARICION FORZADA"]
[209,"DESCONOCIMIENTO DE TRASLADO DE REGIMEN PENSIONAL"]
[210,"DESCONOCIMIENTO DEL AMPARO POR RETEN SOCIAL POR CONDICION DE MADRE O PADRE CABEZA DE FAMILIA DURANTE LOS PROCESOS DE REESTRUCTURACION Y LIQUIDACION DE ENTIDADES PUBLICAS"]
[211,"DESCONOCIMIENTO DEL AMPARO POR RETEN SOCIAL POR CONDICION DE PERSONA CON DISCAPACIDAD DURANTE LOS PROCESOS DE REESTRUCTURACION Y LIQUIDACION DE ENTIDADES PUBLICAS"]
[212,"DESCONOCIMIENTO DEL AMPARO POR RETEN SOCIAL POR CONDICION DE PREPENSIONADO DURANTE LOS PROCESOS DE REESTRUCTURACION Y LIQUIDACION DE ENTIDADES PUBLICAS"]
[213,"DESCONOCIMIENTO DEL DERECHO A REUBICACION LABORAL"]
[214,"DESCONOCIMIENTO DEL FUERO SINDICAL"]
[215,"DESCONOCIMIENTO DEL FUERO SINDICAL EN LOS PROCESOS DE REESTRUCTURACION Y LIQUIDACION DE ENTIDADES PUBLICAS"]
[216,"DESCUENTO DE NOMINA NO AUTORIZADO"]
[217,"DESCUENTO ILEGAL A LA MESADA PENSIONAL"]
[1074,"DESEQUILIBRIO ECONOMICO DEL CONTRATO POR ACTOS O HECHOS DE LA ENTIDAD CONTRATANTE"]
[35,"DESEQUILIBRIO ECONOMICO DEL CONTRATO POR ACTOS O HECHOS DEL CONTRATISTA"]
[36,"DESEQUILIBRIO ECONOMICO DEL CONTRATO POR EL HECHO DEL PRINCIPE"]
[37,"DESEQUILIBRIO ECONOMICO DEL CONTRATO POR TEORIA DE LA IMPREVISION"]
[219,"DESLINDE Y AMOJONAMIENTO"]
[220,"DESMEJORA EN LAS CONDICIONES LABORALES"]
[221,"DESPIDO INDIRECTO DE FUNCIONARIO PUBLICO"]
[222,"DESPIDO INDIRECTO DE TRABAJADOR OFICIAL"]
[224,"DESPIDO SIN JUSTA CAUSA DE TRABAJADOR OFICIAL"]
[1083,"DESPIDO SIN JUSTA CAUSA DE TRABAJADOR VINCULADO A ENTIDAD PUBLICA DE REGIMEN DE DERECHO PRIVADO"]
[32,"DESPLAZAMIENTO FORZADO"]
[226,"DESPOJO JURIDICO Y MATERIAL DE TIERRAS"]
[228,"DIVISION DE LA COSA COMUN POR PARTE DE COMUNEROS O COPROPIETARIOS"]
[24,"EJECUCION DE PRESTACIONES SIN CONTRATO"]
[230,"EJECUCIONES EXTRAJUDICIALES PERPETRADAS POR AGENTES DEL ESTADO"]
[231,"EJECUCIONES EXTRAJUDICIALES PERPETRADAS POR TERCEROS CON PARTICIPACION DE AGENTES DEL ESTADO"]
[234,"ENAJENACION DE ACCIONES SIN EL CUMPLIMIENTO DE LOS REQUISITOS LEGALES"]
[238,"ERROR JUDICIAL"]
[239,"EXCESO EN EL COBRO DE INTERESES"]
[38,"EXISTENCIA O INEXISTENCIA DEL CONTRATO"]
[39,"EXTENSION DE LAS GARANTIAS CONTRACTUALES"]
[243,"EXTRACCION ILEGAL DE ORGANOS, TEJIDOS Y HUESOS"]
[244,"FACTURA EXPEDIDA SIN EL CUMPLIMIENTO DE LOS REQUISITOS LEGALES"]
[254,"FALTA DE MANTENIMIENTO DE BIEN INMUEBLE ARRENDADO"]
[255,"FALTA DE REPARACION INTEGRAL A VICTIMAS DEL CONFLICTO ARMADO INTERNO"]
[257,"HACINAMIENTO CARCELARIO"]
[1075,"ILEGALIDAD DE ACTO ADMINISTRATIVO DURANTE EL CONCURSO DE MÉRITOS PARA PROVEER CARGOS PÚBLICOS"]
[259,"ILEGALIDAD DEL ACTO ADMINISTRATIVO DE DESVINCULACION DE LOS MIEMBROS DE LA FUERZA PUBLICA POR LLAMAMIENTO A CALIFICAR SERVICIOS"]
[260,"ILEGALIDAD DEL ACTO ADMINISTRATIVO DE DESVINCULACION DE LOS MIEMBROS DE LA FUERZA PUBLICA POR RETIRO DISCRECIONAL"]
[261,"ILEGALIDAD DEL ACTO ADMINISTRATIVO DE LIQUIDACION OFICIAL DE AFORO IMPUESTO AL PATRIMONIO"]
[262,"ILEGALIDAD DEL ACTO ADMINISTRATIVO DE LIQUIDACION OFICIAL DE AFORO IMPUESTO CREE"]
[263,"ILEGALIDAD DEL ACTO ADMINISTRATIVO DE LIQUIDACION OFICIAL DE AFORO IMPUESTO DE RENTA Y COMPLEMENTARIOS"]
[264,"ILEGALIDAD DEL ACTO ADMINISTRATIVO DE LIQUIDACION OFICIAL DE AFORO IMPUESTO DE RETENCION EN LA FUENTE"]
[265,"ILEGALIDAD DEL ACTO ADMINISTRATIVO DE LIQUIDACION OFICIAL DE AFORO IMPUESTO DE RIQUEZA"]
[266,"ILEGALIDAD DEL ACTO ADMINISTRATIVO DE LIQUIDACION OFICIAL DE AFORO IMPUESTO DE SEGURIDAD DEMOCRATICA"]
[267,"ILEGALIDAD DEL ACTO ADMINISTRATIVO DE LIQUIDACION OFICIAL DE AFORO IMPUESTO DE VENTAS"]
[268,"ILEGALIDAD DEL ACTO ADMINISTRATIVO DE LIQUIDACION OFICIAL DE AFORO IMPUESTO GMF"]
[269,"ILEGALIDAD DEL ACTO ADMINISTRATIVO DE LIQUIDACION OFICIAL DE CORRECCION IMPUESTO AL PATRIMONIO"]
[270,"ILEGALIDAD DEL ACTO ADMINISTRATIVO DE LIQUIDACION OFICIAL DE CORRECCION IMPUESTO CREE"]
[271,"ILEGALIDAD DEL ACTO ADMINISTRATIVO DE LIQUIDACION OFICIAL DE CORRECCION IMPUESTO DE RENTA Y COMPLEMENTARIOS"]
[272,"ILEGALIDAD DEL ACTO ADMINISTRATIVO DE LIQUIDACION OFICIAL DE CORRECCION IMPUESTO DE RETENCION EN LA FUENTE"]
[273,"ILEGALIDAD DEL ACTO ADMINISTRATIVO DE LIQUIDACION OFICIAL DE CORRECCION IMPUESTO DE RIQUEZA"]
[274,"ILEGALIDAD DEL ACTO ADMINISTRATIVO DE LIQUIDACION OFICIAL DE CORRECCION IMPUESTO DE SEGURIDAD DEMOCRATICA"]
[275,"ILEGALIDAD DEL ACTO ADMINISTRATIVO DE LIQUIDACION OFICIAL DE CORRECCION IMPUESTO DE VENTAS"]
[276,"ILEGALIDAD DEL ACTO ADMINISTRATIVO DE LIQUIDACION OFICIAL DE CORRECCION IMPUESTO GMF"]
[277,"ILEGALIDAD DEL ACTO ADMINISTRATIVO DE LIQUIDACION OFICIAL DE REVISION IMPUESTO AL CONSUMO"]
[278,"ILEGALIDAD DEL ACTO ADMINISTRATIVO DE LIQUIDACION OFICIAL DE REVISION IMPUESTO AL PATRIMONIO"]
[279,"ILEGALIDAD DEL ACTO ADMINISTRATIVO DE LIQUIDACION OFICIAL DE REVISION IMPUESTO CREE"]
[280,"ILEGALIDAD DEL ACTO ADMINISTRATIVO DE LIQUIDACION OFICIAL DE REVISION IMPUESTO DE RENTA Y COMPLEMENTARIOS"]
[281,"ILEGALIDAD DEL ACTO ADMINISTRATIVO DE LIQUIDACION OFICIAL DE REVISION IMPUESTO DE RETENCION EN LA FUENTE"]
[282,"ILEGALIDAD DEL ACTO ADMINISTRATIVO DE LIQUIDACION OFICIAL DE REVISION IMPUESTO DE RIQUEZA"]
[283,"ILEGALIDAD DEL ACTO ADMINISTRATIVO DE LIQUIDACION OFICIAL DE REVISION IMPUESTO DE SEGURIDAD DEMOCRATICA"]
[284,"ILEGALIDAD DEL ACTO ADMINISTRATIVO DE LIQUIDACION OFICIAL DE REVISION IMPUESTO DE VENTAS"]
[287,"ILEGALIDAD DEL ACTO ADMINISTRATIVO GENERAL QUE DISPONE LA REESTRUCTURACION O LIQUIDACION LAS ENTIDADES PUBLICAS"]
[289,"ILEGALIDAD DEL ACTO ADMINISTRATIVO QUE ADJUDICA UN BIEN INMUEBLE"]
[290,"ILEGALIDAD DEL ACTO ADMINISTRATIVO QUE ADJUDICA UN CONTRATO"]
[292,"ILEGALIDAD DEL ACTO ADMINISTRATIVO QUE APRUEBA CALCULO ACTUARIAL"]
[293,"ILEGALIDAD DEL ACTO ADMINISTRATIVO QUE APRUEBA TARIFAS DE ENERGIA Y GAS COMBUSTIBLE"]
[294,"ILEGALIDAD DEL ACTO ADMINISTRATIVO QUE AUTORIZA O NIEGA UN ASCENSO"]
[295,"ILEGALIDAD DEL ACTO ADMINISTRATIVO QUE CALIFICA LA PERDIDA DE CAPACIDAD LABORAL"]
[297,"ILEGALIDAD DEL ACTO ADMINISTRATIVO QUE CLAUSURA ESTABLECIMIENTO DE COMERCIO"]
[301,"ILEGALIDAD DEL ACTO ADMINISTRATIVO QUE CONVOCA A CONCURSO PUBLICO DE MERITOS PARA PROVEER CARGOS PUBLICOS"]
[302,"ILEGALIDAD DEL ACTO ADMINISTRATIVO QUE CREA UN IMPUESTO"]
[303,"ILEGALIDAD DEL ACTO ADMINISTRATIVO QUE CREA UNA CONTRIBUCION ESPECIAL"]
[304,"ILEGALIDAD DEL ACTO ADMINISTRATIVO QUE CREA UNA TASA"]
[965,"ILEGALIDAD DEL ACTO ADMINISTRATIVO QUE DA COMO NO PRESENTADA UNA DECLARACION TRIBUTARIA"]
[963,"ILEGALIDAD DEL ACTO ADMINISTRATIVO QUE DECIDE SOBRE TERMINACION POR MUTUO ACUERDO DE PROCESOS ADMINISTRATIVOS TRIBUTARIOS, ADUANEROS O CAMBIARIOS"]
[305,"ILEGALIDAD DEL ACTO ADMINISTRATIVO QUE DECLARA DESIERTA LA LICITACION"]
[960,"ILEGALIDAD DEL ACTO ADMINISTRATIVO QUE DECLARA EL INCUMPLIMIENTO DE UNA OBLIGACION ADUANERA Y ORDENA HACER EFECTIVA LA GARANTIA"]
[40,"ILEGALIDAD DEL ACTO ADMINISTRATIVO QUE DECLARA EL INCUMPLIMIENTO DEL CONTRATO"]
[306,"ILEGALIDAD DEL ACTO ADMINISTRATIVO QUE DECLARA EL RESULTADO DE UN PROCESO ELECTORAL"]
[41,"ILEGALIDAD DEL ACTO ADMINISTRATIVO QUE DECLARA LA CADUCIDAD CONTRACTUAL"]
[307,"ILEGALIDAD DEL ACTO ADMINISTRATIVO QUE DECLARA LA INSUBSISTENCIA DE FUNCIONARIO DE CARRERA"]
[308,"ILEGALIDAD DEL ACTO ADMINISTRATIVO QUE DECLARA LA INSUBSISTENCIA DE FUNCIONARIO DE LIBRE NOMBRAMIENTO Y REMOCION"]
[309,"ILEGALIDAD DEL ACTO ADMINISTRATIVO QUE DECLARA LA INSUBSISTENCIA DE FUNCIONARIO EN PROVISIONALIDAD"]
[42,"ILEGALIDAD DEL ACTO ADMINISTRATIVO QUE DECLARA LA OCURRENCIA DEL SINIESTRO Y ORDENA HACER EFECTIVA LA POLIZA"]
[961,"ILEGALIDAD DEL ACTO ADMINISTRATIVO QUE DECLARA LA PERDIDA O NO ACCESO A BENEFICIOS TRIBUTARIOS"]
[43,"ILEGALIDAD DEL ACTO ADMINISTRATIVO QUE DECLARA LA TERMINACION UNILATERAL DEL CONTRATO"]
[311,"ILEGALIDAD DEL ACTO ADMINISTRATIVO QUE DECRETA LA EXPROPIACION"]
[312,"ILEGALIDAD DEL ACTO ADMINISTRATIVO QUE DECRETA MEDIDAS CAUTELARES"]
[313,"ILEGALIDAD DEL ACTO ADMINISTRATIVO QUE DEFINE AVALUO CATASTRAL"]
[317,"ILEGALIDAD DEL ACTO ADMINISTRATIVO QUE DEJA SIN EFECTO FACILIDAD DE PAGO"]
[319,"ILEGALIDAD DEL ACTO ADMINISTRATIVO QUE DESVINCULA A SUPERNUMERARIO"]
[975,"ILEGALIDAD DEL ACTO ADMINISTRATIVO QUE DETERMINA SI PROCEDE LA RECUPERACION DE CONSUMOS DE SERVICIOS PUBLICOS DOMICILIARIOS NO FACTURADOS"]
[320,"ILEGALIDAD DEL ACTO ADMINISTRATIVO QUE DISPONE DECOMISO DE MERCANCIAS"]
[977,"ILEGALIDAD DEL ACTO ADMINISTRATIVO QUE DISPONE EL REINTEGRO DE RECURSOS A FAVOR DEL ESTADO"]
[974,"ILEGALIDAD DEL ACTO ADMINISTRATIVO QUE DISPONE LA TOMA DE POSESION DE UNA EMPRESA PRESTADORA DE SERVICIOS PUBLICOS DOMICILIARIOS"]
[321,"ILEGALIDAD DEL ACTO ADMINISTRATIVO QUE EFECTUA CLASIFICACION ARANCELARIA MERCANCIAS"]
[322,"ILEGALIDAD DEL ACTO ADMINISTRATIVO QUE ESTABLECE CUPOS DE COMBUSTIBLE LIBRE DE IMPUESTOS"]
[44,"ILEGALIDAD DEL ACTO ADMINISTRATIVO QUE HACE EFECTIVA LA CLAUSULA PENAL PECUNIARIA"]
[45,"ILEGALIDAD DEL ACTO ADMINISTRATIVO QUE IMPONE MULTA POR INCUMPLIMIENTO DEL CONTRATO"]
[326,"ILEGALIDAD DEL ACTO ADMINISTRATIVO QUE IMPONE SANCION A CONTADORES PUBLICOS"]
[327,"ILEGALIDAD DEL ACTO ADMINISTRATIVO QUE IMPONE SANCION A EMPRESA PRESTADORA DE SERVICIOS PUBLICOS DOMICILIARIOS POR VIOLACION AL ESTATUTO DEL CONSUMIDOR"]
[328,"ILEGALIDAD DEL ACTO ADMINISTRATIVO QUE IMPONE SANCION A ENTIDADES AUTORIZADAS PARA LA RECEPCION Y RECAUDO DE IMPUESTOS"]
[329,"ILEGALIDAD DEL ACTO ADMINISTRATIVO QUE IMPONE SANCION A LOS USUARIOS DE SERVICIOS PUBLICOS DOMICILIARIOS"]
[331,"ILEGALIDAD DEL ACTO ADMINISTRATIVO QUE IMPONE SANCION DISCIPLINARIA"]
[332,"ILEGALIDAD DEL ACTO ADMINISTRATIVO QUE IMPONE SANCION EN EJERCICIO DEL CONTROL FISCAL"]
[333,"ILEGALIDAD DEL ACTO ADMINISTRATIVO QUE IMPONE SANCION POR DECLARACION DE INSOLVENCIA"]
[334,"ILEGALIDAD DEL ACTO ADMINISTRATIVO QUE IMPONE SANCION POR DECLARACION DE PROVEEDOR FICTICIO O INSOLVENTE"]
[335,"ILEGALIDAD DEL ACTO ADMINISTRATIVO QUE IMPONE SANCION POR DEVOLUCION O COMPENSACION IMPROCEDENTE"]
[336,"ILEGALIDAD DEL ACTO ADMINISTRATIVO QUE IMPONE SANCION POR EXTEMPORANEIDAD DE LA PRESENTACION DE INFORMACION EXOGENA"]
[337,"ILEGALIDAD DEL ACTO ADMINISTRATIVO QUE IMPONE SANCION POR EXTEMPORANEIDAD EN LA DECLARACION INFORMATIVA DE PRECIOS DE TRANSFERENCIA"]
[338,"ILEGALIDAD DEL ACTO ADMINISTRATIVO QUE IMPONE SANCION POR EXTEMPORANEIDAD EN LA DOCUMENTACION COMPROBATORIA DE PRECIOS DE TRANSFERENCIA"]
[339,"ILEGALIDAD DEL ACTO ADMINISTRATIVO QUE IMPONE SANCION POR EXTEMPORANEIDAD EN LA INSCRIPCION EN EL REGISTRO NACIONAL DE VENDEDORES"]
[340,"ILEGALIDAD DEL ACTO ADMINISTRATIVO QUE IMPONE SANCION POR FALTA ADUANERA DE LOS AGENTES DE ADUANAS"]
[341,"ILEGALIDAD DEL ACTO ADMINISTRATIVO QUE IMPONE SANCION POR FALTA ADUANERA DE LOS AGENTES DE CARGA INTERNACIONAL"]
[343,"ILEGALIDAD DEL ACTO ADMINISTRATIVO QUE IMPONE SANCION POR FALTA ADUANERA DE LOS DECLARANTES EN EL REGIMEN DE EXPORTACION"]
[344,"ILEGALIDAD DEL ACTO ADMINISTRATIVO QUE IMPONE SANCION POR FALTA ADUANERA DE LOS DECLARANTES EN EL REGIMEN DE IMPORTACION"]
[345,"ILEGALIDAD DEL ACTO ADMINISTRATIVO QUE IMPONE SANCION POR FALTA ADUANERA DE LOS DECLARANTES EN EL REGIMEN DE TRANSITO ADUANERO"]
[346,"ILEGALIDAD DEL ACTO ADMINISTRATIVO QUE IMPONE SANCION POR FALTA ADUANERA DE LOS DEPOSITOS PUBLICOS Y PRIVADOS"]
[347,"ILEGALIDAD DEL ACTO ADMINISTRATIVO QUE IMPONE SANCION POR FALTA ADUANERA DE LOS INTERMEDIARIOS DE TRAFICO POSTAL Y ENVIOS URGENTES"]
[348,"ILEGALIDAD DEL ACTO ADMINISTRATIVO QUE IMPONE SANCION POR FALTA ADUANERA DE LOS TRANSPORTADORES"]
[349,"ILEGALIDAD DEL ACTO ADMINISTRATIVO QUE IMPONE SANCION POR FALTA ADUANERA DE LOS USUARIOS ADUANEROS PERMANENTES"]
[350,"ILEGALIDAD DEL ACTO ADMINISTRATIVO QUE IMPONE SANCION POR FALTA ADUANERA DE LOS USUARIOS INDUSTRIALES Y COMERCIALES DE ZONA FRANCA"]
[351,"ILEGALIDAD DEL ACTO ADMINISTRATIVO QUE IMPONE SANCION POR FALTA ADUANERA DE LOS USUARIOS OPERADORES DE ZONA FRANCA"]
[352,"ILEGALIDAD DEL ACTO ADMINISTRATIVO QUE IMPONE SANCION POR FALTA ADUANERA EN MATERIA DE VALORACION DE MERCANCIAS"]
[353,"ILEGALIDAD DEL ACTO ADMINISTRATIVO QUE IMPONE SANCION POR INCONSISTENCIAS EN LA DECLARACION INFORMATIVA DE PRECIOS DE TRANSFERENCIA"]
[354,"ILEGALIDAD DEL ACTO ADMINISTRATIVO QUE IMPONE SANCION POR INCONSISTENCIAS EN LA DOCUMENTACION COMPROBATORIA DE PRECIOS DE TRANSFERENCIA"]
[355,"ILEGALIDAD DEL ACTO ADMINISTRATIVO QUE IMPONE SANCION POR INCONSISTENCIAS EN LA PRESENTACION DE INFORMACION EXOGENA"]
[957,"ILEGALIDAD DEL ACTO ADMINISTRATIVO QUE IMPONE SANCION POR INDEBIDA CANALIZACION DE DIVISAS"]
[356,"ILEGALIDAD DEL ACTO ADMINISTRATIVO QUE IMPONE SANCION POR INFRACCION DE TRANSITO"]
[959,"ILEGALIDAD DEL ACTO ADMINISTRATIVO QUE IMPONE SANCION POR INFRACCIONES CAMBIARIAS"]
[357,"ILEGALIDAD DEL ACTO ADMINISTRATIVO QUE IMPONE SANCION POR LA NO PRESENTACION DE INFORMACION EXOGENA"]
[358,"ILEGALIDAD DEL ACTO ADMINISTRATIVO QUE IMPONE SANCION POR LA NO PRESENTACION DE LA DECLARACION INFORMATIVA DE PRECIOS DE TRANSFERENCIA"]
[359,"ILEGALIDAD DEL ACTO ADMINISTRATIVO QUE IMPONE SANCION POR LA NO PRESENTACION DE LA DOCUMENTACION COMPROBATORIA DE PRECIOS DE TRANSFERENCIA"]
[360,"ILEGALIDAD DEL ACTO ADMINISTRATIVO QUE IMPONE SANCION POR LA OMISION EN LA EXPEDICION DE CERTIFICADOS"]
[958,"ILEGALIDAD DEL ACTO ADMINISTRATIVO QUE IMPONE SANCION POR NO CANALIZACION DE DIVISAS"]
[361,"ILEGALIDAD DEL ACTO ADMINISTRATIVO QUE IMPONE SANCION POR NO PAGO DE APORTES PARAFISCALES"]
[966,"ILEGALIDAD DEL ACTO ADMINISTRATIVO QUE IMPONE SANCION POR NO PRESENTAR DECLARACION TRIBUTARIA"]
[362,"ILEGALIDAD DEL ACTO ADMINISTRATIVO QUE IMPONE SANCION POR OMISION EN LA OBLIGACION DE LLEVAR LIBROS DE CONTABILIDAD"]
[1076,"ILEGALIDAD DEL ACTO ADMINISTRATIVO QUE IMPONE SANCION POR OPERACIONES DE MERCADO LIBRE"]
[364,"ILEGALIDAD DEL ACTO ADMINISTRATIVO QUE IMPONE SANCION POR PRACTICA RESTRICTIVA DE LA COMPETENCIA"]
[365,"ILEGALIDAD DEL ACTO ADMINISTRATIVO QUE IMPONE SANCION POR VIOLACION DE NORMAS DE DERECHO LABORAL COLECTIVO"]
[366,"ILEGALIDAD DEL ACTO ADMINISTRATIVO QUE IMPONE SANCION POR VIOLACION DE NORMAS DE DERECHO LABORAL INDIVIDUAL"]
[367,"ILEGALIDAD DEL ACTO ADMINISTRATIVO QUE IMPONE SANCION POR VIOLACION DE NORMAS DE PROTECCION AMBIENTAL"]
[368,"ILEGALIDAD DEL ACTO ADMINISTRATIVO QUE IMPONE SANCION POR VIOLACION DE NORMAS DEL SISTEMA DE SEGURIDAD SOCIAL INTEGRAL"]
[369,"ILEGALIDAD DEL ACTO ADMINISTRATIVO QUE IMPONE SANCION POR VIOLACION DE NORMAS SOBRE CONTRATO DE APRENDIZAJE"]
[1077,"ILEGALIDAD DEL ACTO ADMINISTRATIVO QUE IMPONE SANCION RELACIONADA CON CUENTAS DE COMPENSACION"]
[370,"ILEGALIDAD DEL ACTO ADMINISTRATIVO QUE IMPONE SANCIONES DERIVADAS DE LA FACULTAD DE INSPECCION, VIGILANCIA Y CONTROL"]
[373,"ILEGALIDAD DEL ACTO ADMINISTRATIVO QUE INTERPRETA UNILATERALMENTE EL CONTRATO"]
[374,"ILEGALIDAD DEL ACTO ADMINISTRATIVO QUE LIBRA MANDAMIENTO DE PAGO"]
[962,"ILEGALIDAD DEL ACTO ADMINISTRATIVO QUE LIQUIDA IMPUESTO ARMAS, MUNICIONES Y EXPLOSIVOS"]
[378,"ILEGALIDAD DEL ACTO ADMINISTRATIVO QUE LIQUIDA LA PENSION - ACCION DE LESIVIDAD"]
[46,"ILEGALIDAD DEL ACTO ADMINISTRATIVO QUE LIQUIDA UN CONTRATO"]
[380,"ILEGALIDAD DEL ACTO ADMINISTRATIVO QUE LIQUIDA UN IMPUESTO"]
[1078,"ILEGALIDAD DEL ACTO ADMINISTRATIVO QUE LIQUIDA UNA CONTRIBUCION DE OBRA PUBLICA"]
[381,"ILEGALIDAD DEL ACTO ADMINISTRATIVO QUE LIQUIDA UNA CONTRIBUCION ESPECIAL"]
[382,"ILEGALIDAD DEL ACTO ADMINISTRATIVO QUE LIQUIDA UNA TASA"]
[383,"ILEGALIDAD DEL ACTO ADMINISTRATIVO QUE MODIFICA PLANTA DE PERSONAL"]
[967,"ILEGALIDAD DEL ACTO ADMINISTRATIVO QUE NIEGA ACTUALIZACION O CANCELACION DE RUT"]
[384,"ILEGALIDAD DEL ACTO ADMINISTRATIVO QUE NIEGA APORTES MINEROS"]
[386,"ILEGALIDAD DEL ACTO ADMINISTRATIVO QUE NIEGA CONDONACION DE CREDITO EDUCATIVO"]
[388,"ILEGALIDAD DEL ACTO ADMINISTRATIVO QUE NIEGA CREACION DE ZONA FRANCA"]
[392,"ILEGALIDAD DEL ACTO ADMINISTRATIVO QUE NIEGA EL RECONOCIMIENTO E INSCRIPCION O RENOVACION DE LOS USUARIOS ADUANEROS PERMANENTES"]
[394,"ILEGALIDAD DEL ACTO ADMINISTRATIVO QUE NIEGA EXPEDICION DE HOJA DE SERVICIOS"]
[395,"ILEGALIDAD DEL ACTO ADMINISTRATIVO QUE NIEGA FINANCIACION DE ESTUDIOS"]
[396,"ILEGALIDAD DEL ACTO ADMINISTRATIVO QUE NIEGA INSCRIPCION DE FUNCIONARIO EN EL REGISTRO PUBLICO DE CARRERA ADMINISTRATIVA"]
[397,"ILEGALIDAD DEL ACTO ADMINISTRATIVO QUE NIEGA INSCRIPCION DE TITULO MINERO EN EL REGISTRO MINERO"]
[969,"ILEGALIDAD DEL ACTO ADMINISTRATIVO QUE NIEGA INSCRIPCION EN EL REGISTRO UNICO DE VICTIMAS"]
[398,"ILEGALIDAD DEL ACTO ADMINISTRATIVO QUE NIEGA LA AUTORIZACION COMO DEPOSITO PUBLICO O PRIVADO DE MERCANCIAS BAJO CONTROL ADUANERO"]
[955,"ILEGALIDAD DEL ACTO ADMINISTRATIVO QUE NIEGA LA DEVOLUCION O COMPENSACION DE OBLIGACIONES ADUANERAS"]
[956,"ILEGALIDAD DEL ACTO ADMINISTRATIVO QUE NIEGA LA DEVOLUCION O COMPENSACION DE OBLIGACIONES TRIBUTARIAS"]
[399,"ILEGALIDAD DEL ACTO ADMINISTRATIVO QUE NIEGA LA HABILITACION DE LUGARES PARA EL INGRESO Y SALIDA DE MERCANCIAS BAJO CONTROL ADUANERO"]
[400,"ILEGALIDAD DEL ACTO ADMINISTRATIVO QUE NIEGA LA HOMOLOGACION O CONVALIDACION DE TITULOS OTORGADOS EN EL EXTRANJERO"]
[402,"ILEGALIDAD DEL ACTO ADMINISTRATIVO QUE NIEGA LICENCIA DE EXPLORACION MINERA"]
[403,"ILEGALIDAD DEL ACTO ADMINISTRATIVO QUE NIEGA LICENCIA DE EXPLOTACION MINERA"]
[404,"ILEGALIDAD DEL ACTO ADMINISTRATIVO QUE NIEGA LIQUIDACION OFICIAL PARA EFECTOS DE DEVOLUCION DE ARANCELES ADUANEROS"]
[405,"ILEGALIDAD DEL ACTO ADMINISTRATIVO QUE NIEGA O ADMITE ACUERDO ANTICIPADO DE PRECIOS"]
[406,"ILEGALIDAD DEL ACTO ADMINISTRATIVO QUE NIEGA O ADMITE CONTRATO DE ESTABILIDAD JURIDICA"]
[407,"ILEGALIDAD DEL ACTO ADMINISTRATIVO QUE NIEGA O ADMITE REGISTRO DE CONTRATO"]
[408,"ILEGALIDAD DEL ACTO ADMINISTRATIVO QUE NIEGA O APRUEBA CONCILIACION"]
[409,"ILEGALIDAD DEL ACTO ADMINISTRATIVO QUE NIEGA O APRUEBA CRUCE DE CUENTAS"]
[410,"ILEGALIDAD DEL ACTO ADMINISTRATIVO QUE NIEGA O APRUEBA DACION EN PAGO"]
[411,"ILEGALIDAD DEL ACTO ADMINISTRATIVO QUE NIEGA O APRUEBA FACILIDAD DE PAGO"]
[412,"ILEGALIDAD DEL ACTO ADMINISTRATIVO QUE NIEGA PERMISO PARA PORTE O TENENCIA DE ARMAS"]
[417,"ILEGALIDAD DEL ACTO ADMINISTRATIVO QUE NO ADJUDICA UN BIEN INMUEBLE"]
[418,"ILEGALIDAD DEL ACTO ADMINISTRATIVO QUE NO EFECTUA CORRECCION DE HISTORIA LABORAL"]
[429,"ILEGALIDAD DEL ACTO ADMINISTRATIVO QUE NOMBRA FUNCIONARIO PUBLICO DESCONOCIENDO EL REGIMEN DE CARRERA ADMINISTRATIVA"]
[430,"ILEGALIDAD DEL ACTO ADMINISTRATIVO QUE NOMBRA FUNCIONARIO PUBLICO DESCONOCIENDO EL REGIMEN DE CARRERA DIPLOMATICA Y CONSULAR"]
[431,"ILEGALIDAD DEL ACTO ADMINISTRATIVO QUE NOMBRA FUNCIONARIO PUBLICO DESCONOCIENDO EL REGIMEN DE CARRERA JUDICIAL"]
[432,"ILEGALIDAD DEL ACTO ADMINISTRATIVO QUE NOMBRA UN SERVIDOR PUBLICO DESCONOCIENDO EL REGIMEN DE CARRERA NOTARIAL"]
[435,"ILEGALIDAD DEL ACTO ADMINISTRATIVO QUE ORDENA EL RETIRO DE SERVIDOR PUBLICO POR CUMPLIMIENTO DE LA EDAD DE RETIRO FORZOSO"]
[437,"ILEGALIDAD DEL ACTO ADMINISTRATIVO QUE ORDENA LA DEVOLUCION DE VALORES POR REINTEGRO AL SERVICIO ACTIVO"]
[968,"ILEGALIDAD DEL ACTO ADMINISTRATIVO QUE PROFIERE LIQUIDACION OFICIAL DE CORRECCION EN ADUANAS"]
[445,"ILEGALIDAD DEL ACTO ADMINISTRATIVO QUE PROFIERE LIQUIDACION OFICIAL DE REVISION DE VALOR DEL IMPUESTO DE IMPORTACION"]
[447,"ILEGALIDAD DEL ACTO ADMINISTRATIVO QUE RECHAZA PROPUESTA DE CONTRATO DE CONCESION MINERA"]
[448,"ILEGALIDAD DEL ACTO ADMINISTRATIVO QUE RECHAZA PROPUESTA DE CONTRATO MINERO CON LAS ENTIDADES DESCENTRALIZADAS"]
[964,"ILEGALIDAD DEL ACTO ADMINISTRATIVO QUE RECHAZA SOLICITUD DEVOLUCION POR PAGO DE LO NO DEBIDO"]
[450,"ILEGALIDAD DEL ACTO ADMINISTRATIVO QUE RECONOCE PENSION - ACCION DE LESIVIDAD"]
[451,"ILEGALIDAD DEL ACTO ADMINISTRATIVO QUE REGULA LOS SERVICIOS PUBLICOS DE ENERGIA, GAS NATURAL, GLP Y COMBUSTIBLES LIQUIDOS"]
[973,"ILEGALIDAD DEL ACTO ADMINISTRATIVO QUE RESUELVE RECURSOS CONTRA LAS DECISIONES DE LOS PRESTADORES DE SERVICIOS PUBLICOS DOMICILIARIOS"]
[976,"ILEGALIDAD DEL ACTO ADMINISTRATIVO QUE RESUELVE SOBRE LA RELIQUIDACION DE VALORES CONTENIDOS EN UNA FACTURA DE SERVICIOS PUBLICOS DOMICILIARIOS"]
[456,"ILEGALIDAD DEL ACTO ADMINISTRATIVO QUE RETIRA DEL SERVICIO A MIEMBRO DE LA FUERZA PUBLICA POR PERDIDA DE LA CAPACIDAD LABORAL"]
[457,"ILEGALIDAD DEL ACTO ADMINISTRATIVO QUE REVOCA EL NOMBRAMIENTO DE FUNCIONARIO PUBLICO"]
[458,"ILEGALIDAD DEL ACTO ADMINISTRATIVO QUE REVOCA, SUSPENDE O NIEGA UN PROGRAMA DE EDUCACION SUPERIOR"]
[459,"ILEGALIDAD DEL ACTO ADMINISTRATIVO QUE SANCIONA DISCIPLINARIAMENTE A FUNCIONARIO PUBLICO POR ABANDONO DEL CARGO"]
[460,"ILEGALIDAD DEL ACTO ADMINISTRATIVO QUE SANCIONA DISCIPLINARIAMENTE A TRABAJADOR OFICIAL POR ABANDONO DEL SERVICIO"]
[462,"ILEGALIDAD DEL ACTO ADMINISTRATIVO QUE SUSPENDE EL PAGO DE LA ASIGNACION DE RETIRO"]
[463,"ILEGALIDAD DEL ACTO ADMINISTRATIVO QUE SUSPENDE EL PAGO DE PENSION"]
[470,"IMPOSICION INJUSTA DE MEDIDA DE ASEGURAMIENTO NO PRIVATIVA DE LA LIBERTAD"]
[474,"INCONSTITUCIONALIDAD DEL ACTO ADMINISTRATIVO"]
[476,"INCUMPLIMIENTO DE ACUERDO CONCILIATORIO"]
[47,"INCUMPLIMIENTO DE LA OBLIGACION DE CONSTITUCION DE GARANTIAS CONTRACTUALES"]
[479,"INCUMPLIMIENTO DE LA OBLIGACION DE SUSCRIBIR CONTRATO DE SEGURO"]
[480,"INCUMPLIMIENTO DE LAS OBLIGACIONES CONSIGNADAS EN EL ACTA DE LIQUIDACION DEL CONTRATO"]
[481,"INCUMPLIMIENTO DE LAUDO ARBITRAL"]
[482,"INCUMPLIMIENTO DE NORMA JURIDICA"]
[483,"INCUMPLIMIENTO DE REQUISITOS PARA DESIGNACION DE LIQUIDADOR"]
[484,"INCUMPLIMIENTO DE SENTENCIA JUDICIAL"]
[487,"INCUMPLIMIENTO DEL ACTO ADMINISTRATIVO QUE LIQUIDA UN CONTRATO"]
[49,"INCUMPLIMIENTO DEL CONTRATO POR EJECUCION PARCIAL DE PRESTACIONES"]
[50,"INCUMPLIMIENTO DEL CONTRATO POR EJECUCION TARDIA DE PRESTACIONES"]
[51,"INCUMPLIMIENTO DEL CONTRATO POR INDEBIDA INTERPRETACION"]
[52,"INCUMPLIMIENTO DEL CONTRATO POR NO EJECUCION DE PRESTACIONES"]
[53,"INCUMPLIMIENTO DEL CONTRATO POR VIOLACION DEL PRINCIPIO DE PLANEACION POR PARTE DE LA ENTIDAD CONTRATANTE"]
[54,"INCUMPLIMIENTO DEL CONTRATO POR VIOLACION DEL PRINCIPIO DE PLANEACION POR PARTE DEL CONTRATISTA"]
[55,"INCUMPLIMIENTO DEL DEBER DE LIQUIDAR EL CONTRATO"]
[489,"INCUMPLIMIENTO DEL DEBER DE PROTECCION A LA HONRA Y BUEN NOMBRE"]
[491,"INCUMPLIMIENTO DEL DEBER DE SEGUIMIENTO A LOS PROCESOS DE LIQUIDACION DE ENTIDADES FINANCIERAS"]
[492,"INCUMPLIMIENTO EN EL DEBER DE SEGURIDAD Y PREVENCION DE DESASTRES"]
[493,"INCUMPLIMIENTO EN EL PAGO DE APORTES AL SISTEMA DE SEGURIDAD SOCIAL INTEGRAL"]
[494,"INCUMPLIMIENTO EN EL PAGO DE APORTES PARAFISCALES"]
[495,"INCUMPLIMIENTO EN EL PAGO DE ASIGNACION DE RETIRO"]
[496,"INCUMPLIMIENTO EN EL PAGO DE AUXILIO DE CESANTIAS"]
[497,"INCUMPLIMIENTO EN EL PAGO DE COSTO ACUMULADO DE ASCENSOS EN EL ESCALAFON DOCENTE"]
[498,"INCUMPLIMIENTO EN EL PAGO DE CUOTAS DE COPROPIEDAD"]
[499,"INCUMPLIMIENTO EN EL PAGO DE HONORARIOS"]
[500,"INCUMPLIMIENTO EN EL PAGO DE INCAPACIDAD MEDICA"]
[501,"INCUMPLIMIENTO EN EL PAGO DE INCREMENTO DE PENSION DE INVALIDEZ"]
[502,"INCUMPLIMIENTO EN EL PAGO DE INCREMENTO DE PENSION DE VEJEZ"]
[503,"INCUMPLIMIENTO EN EL PAGO DE INDEMNIZACION POR DESPIDO SIN JUSTA CAUSA"]
[504,"INCUMPLIMIENTO EN EL PAGO DE INDEMNIZACION POR DISMINUCION DE CAPACIDAD LABORAL"]
[505,"INCUMPLIMIENTO EN EL PAGO DE INDEMNIZACION POR MUERTE EN ACCIDENTE DE TRABAJO"]
[981,"INCUMPLIMIENTO EN EL PAGO DE INDEMNIZACION SUSTITUTIVA DE PENSION DE SOBREVIVIENTES"]
[978,"INCUMPLIMIENTO EN EL PAGO DE INDEMNIZACION SUSTITUTIVA DE PENSION DE VEJEZ"]
[506,"INCUMPLIMIENTO EN EL PAGO DE INTERESES SOBRE EL AUXILIO DE CESANTIA"]
[507,"INCUMPLIMIENTO EN EL PAGO DE LA BONIFICACION POR COMPENSACION"]
[508,"INCUMPLIMIENTO EN EL PAGO DE LA INDEXACION Y REAJUSTE DE LA PENSION DE INVALIDEZ"]
[509,"INCUMPLIMIENTO EN EL PAGO DE LA INDEXACION Y REAJUSTE DE LA PENSION DE SOBREVIVIENTE"]
[510,"INCUMPLIMIENTO EN EL PAGO DE LA INDEXACION Y REAJUSTE DE LA PENSION DE VEJEZ"]
[986,"INCUMPLIMIENTO EN EL PAGO DE LA INDEXACION Y REAJUSTE DE PENSION SUSTITUTIVA"]
[1095,"INCUMPLIMIENTO EN EL PAGO DE LA LICENCIA DE MATERNIDAD O PATERNIDAD"]
[512,"INCUMPLIMIENTO EN EL PAGO DE LOS CANONES DE ARRENDAMIENTO"]
[513,"INCUMPLIMIENTO EN EL PAGO DE MESADA ADICIONAL"]
[514,"INCUMPLIMIENTO EN EL PAGO DE PENSION DE INVALIDEZ"]
[515,"INCUMPLIMIENTO EN EL PAGO DE PENSION DE SOBREVIVIENTE"]
[516,"INCUMPLIMIENTO EN EL PAGO DE PENSION DE VEJEZ"]
[517,"INCUMPLIMIENTO EN EL PAGO DE PENSION FAMILIAR"]
[518,"INCUMPLIMIENTO EN EL PAGO DE PENSION SUSTITUTIVA"]
[519,"INCUMPLIMIENTO EN EL PAGO DE PRESTACIONES SOCIALES"]
[520,"INCUMPLIMIENTO EN EL PAGO DE PRIMA DE ACTIVIDAD"]
[521,"INCUMPLIMIENTO EN EL PAGO DE PRIMA DE ACTUALIZACION"]
[522,"INCUMPLIMIENTO EN EL PAGO DE PRIMA DE ANTIGUEDAD"]
[523,"INCUMPLIMIENTO EN EL PAGO DE PRIMA DE SERVICIOS"]
[524,"INCUMPLIMIENTO EN EL PAGO DE PRIMA TECNICA"]
[525,"INCUMPLIMIENTO EN EL PAGO DE REAJUSTE DE LA PENSION POR LEY 4 DE 1992"]
[526,"INCUMPLIMIENTO EN EL PAGO DE REGALIAS"]
[527,"INCUMPLIMIENTO EN EL PAGO DE RETROACTIVO DE PENSION DE INVALIDEZ"]
[984,"INCUMPLIMIENTO EN EL PAGO DE RETROACTIVO DE PENSION DE SOBREVIVIENTE"]
[528,"INCUMPLIMIENTO EN EL PAGO DE RETROACTIVO DE PENSION DE VEJEZ"]
[988,"INCUMPLIMIENTO EN EL PAGO DE RETROACTIVO DE PENSION SUSTITUTIVA"]
[529,"INCUMPLIMIENTO EN EL PAGO DE SALARIO"]
[530,"INCUMPLIMIENTO EN EL PAGO DE SINIESTRO POR ASEGURADORA"]
[531,"INCUMPLIMIENTO EN EL PAGO DE SUBSIDIO DE VIVIENDA"]
[532,"INCUMPLIMIENTO EN EL PAGO DE SUBSIDIO FAMILIAR"]
[533,"INCUMPLIMIENTO EN EL PAGO DE SUSTITUCION DE LA ASIGNACION DE RETIRO"]
[534,"INCUMPLIMIENTO EN EL PAGO DE UNA OBLIGACION CON GARANTIA REAL"]
[535,"INCUMPLIMIENTO EN EL PAGO DEL AUXILIO FUNERARIO"]
[536,"INCUMPLIMIENTO EN EL RECONOCIMIENTO DE MEDICAMENTOS Y SERVICIOS INCLUIDOS O NO EN EL POS"]
[537,"INCUMPLIMIENTO EN LA CONSTITUCION DE CONSORCIOS Y/O UNIONES TEMPORALES"]
[538,"INCUMPLIMIENTO EN LA ENTREGA DE VIVIENDA DE INTERES SOCIAL"]
[539,"INCUMPLIMIENTO EN LA ENTREGA MATERIAL DE BIEN DEL TRADENTE AL ADQUIRENTE"]
[540,"INCUMPLIMIENTO EN PAGO DE OBLIGACION CONTENIDA EN TITULO VALOR"]
[541,"INDEBIDA ADECUACION FISICA DE CONSTRUCCIONES PARA PERSONAS CON ALGUNA DISCAPACIDAD"]
[543,"INDEBIDA CONSTITUCION DE SINDICATO"]
[544,"INDEBIDA INCORPORACION DE CONSCRIPTOS"]
[971,"INDEBIDA INSCRIPCION EN EL REGISTRO MERCANTIL"]
[545,"INDEBIDA LIQUIDACION DE ASIGNACION DE RETIRO"]
[546,"INDEBIDA LIQUIDACION DE BONO PENSIONAL"]
[547,"INDEBIDA LIQUIDACION DE CUOTA PARTE PENSIONAL"]
[548,"INDEBIDA LIQUIDACION DE DE COSTO ACUMULADO DE ASCENSOS EN EL ESCALAFON DOCENTE"]
[549,"INDEBIDA LIQUIDACION DE HONORARIOS"]
[550,"INDEBIDA LIQUIDACION DE INCREMENTO DE PENSION DE INVALIDEZ"]
[551,"INDEBIDA LIQUIDACION DE INCREMENTO DE PENSION DE VEJEZ"]
[552,"INDEBIDA LIQUIDACION DE INDEMNIZACION POR DESPIDO SIN JUSTA CAUSA"]
[553,"INDEBIDA LIQUIDACION DE INDEMNIZACION POR DISMINUCION DE CAPACIDAD LABORAL"]
[554,"INDEBIDA LIQUIDACION DE INDEMNIZACION POR MUERTE EN ACCIDENTE DE TRABAJO"]
[980,"INDEBIDA LIQUIDACION DE INDEMNIZACION SUSTITUTIVA DE PENSION DE SOBREVIVIENTES"]
[555,"INDEBIDA LIQUIDACION DE INDEMNIZACION SUSTITUTIVA DE PENSION DE VEJEZ"]
[556,"INDEBIDA LIQUIDACION DE INTERESES SOBRE AUXILIO DE CESANTIAS"]
[557,"INDEBIDA LIQUIDACION DE LA BONIFICACION POR COMPENSACION"]
[558,"INDEBIDA LIQUIDACION DE LA PRIMA DE SEGURO DE DEPOSITO"]
[559,"INDEBIDA LIQUIDACION DE PAGO DE INCAPACIDAD MEDICA"]
[560,"INDEBIDA LIQUIDACION DE PENSION DE INVALIDEZ"]
[561,"INDEBIDA LIQUIDACION DE PENSION DE SOBREVIVIENTE"]
[562,"INDEBIDA LIQUIDACION DE PENSION DE VEJEZ"]
[563,"INDEBIDA LIQUIDACION DE PENSION FAMILIAR"]
[564,"INDEBIDA LIQUIDACION DE PENSION SUSTITUTIVA"]
[565,"INDEBIDA LIQUIDACION DE PRESTACIONES SOCIALES"]
[566,"INDEBIDA LIQUIDACION DE PRIMA DE ACTIVIDAD"]
[567,"INDEBIDA LIQUIDACION DE PRIMA DE ACTUALIZACION"]
[568,"INDEBIDA LIQUIDACION DE PRIMA DE ANTIGUEDAD"]
[569,"INDEBIDA LIQUIDACION DE PRIMA DE SERVICIOS"]
[570,"INDEBIDA LIQUIDACION DE PRIMA TECNICA"]
[571,"INDEBIDA LIQUIDACION DE REAJUSTE DE LA PENSION POR LEY 4 DE 1992"]
[572,"INDEBIDA LIQUIDACION DE REGALIAS"]
[573,"INDEBIDA LIQUIDACION DE RETROACTIVO DE PENSION DE INVALIDEZ"]
[983,"INDEBIDA LIQUIDACION DE RETROACTIVO DE PENSION DE SOBREVIVIENTE"]
[574,"INDEBIDA LIQUIDACION DE RETROACTIVO DE PENSION DE VEJEZ"]
[1079,"INDEBIDA LIQUIDACION DE RETROACTIVO DE PENSION SUSTITUTIVA"]
[575,"INDEBIDA LIQUIDACION DE SUBSIDIO DE VIVIENDA"]
[576,"INDEBIDA LIQUIDACION DE SUBSIDIO FAMILIAR"]
[577,"INDEBIDA LIQUIDACION DE SUSTITUCION DE LA ASIGNACION DE RETIRO"]
[578,"INDEBIDA LIQUIDACION DEL AUXILIO DE CESANTIAS"]
[579,"INDEBIDA LIQUIDACION DEL AUXILIO FUNERARIO"]
[1094,"INDEBIDA LIQUIDACION DEL PAGO DE LA LICENCIA DE MATERNIDAD O PATERNIDAD"]
[580,"INDEBIDA OFICIALIZACION DE ENTIDAD FINANCIERA"]
[581,"INDEBIDA PRESTACION DE SERVICIOS FINANCIEROS"]
[582,"INDEBIDA PRESTACION DE SERVICIOS PUBLICOS DOMICILIARIOS"]
[583,"INDEBIDA PRESTACION DEL SERVICIO DE CORREO POSTAL"]
[953,"INDEBIDO MANEJO DE CADAVER"]
[584,"INDEBIDO SUMINISTRO DE PROGRAMAS, MEDIDAS O ACCIONES AFIRMATIVAS QUE PERMITAN LA INCLUSION DE LAS PERSONAS CON ALGUNA DISCAPACIDAD"]
[585,"INDEBIDO TRASLADO DE FUNCIONARIO PUBLICO"]
[586,"INDEBIDO TRASLADO DE TRABAJADOR OFICIAL"]
[594,"LESION A ALUMNO EN ESTABLECIMIENTO EDUCATIVO"]
[595,"LESION A CIVIL CON AERONAVE OFICIAL"]
[596,"LESION A CIVIL CON ARMA DE DOTACION OFICIAL"]
[597,"LESION A CIVIL CON NAVE OFICIAL"]
[598,"LESION A CIVIL CON VEHICULO OFICIAL"]
[599,"LESION A CIVIL EN COMBATE O ENFRENTAMIENTO"]
[601,"LESION A CIVIL EN ENFRENTAMIENTO ENTRE TROPAS"]
[602,"LESION A CIVIL EN OPERATIVO MILITAR"]
[603,"LESION A CIVIL EN PROCEDIMIENTO DE POLICIA"]
[604,"LESION A CIVIL POR ACTO TERRORISTA CONTRA INSTALACIONES, PERSONAJES O ELEMENTOS REPRESENTATIVOS DEL ESTADO"]
[605,"LESION A CIVIL POR ACTO TERRORISTA CONTRA POBLACION CIVIL"]
[606,"LESION A CIVIL POR EXPLOSION DE MINA ANTIPERSONAL"]
[607,"LESION A CIVIL POR GRUPO ARMADO ILEGAL"]
[608,"LESION A CONSCRIPTO CON AERONAVE OFICIAL"]
[609,"LESION A CONSCRIPTO CON ARMA DE DOTACION OFICIAL"]
[610,"LESION A CONSCRIPTO CON NAVE OFICIAL"]
[611,"LESION A CONSCRIPTO CON VEHICULO OFICIAL"]
[612,"LESION A CONSCRIPTO DERIVADA DE LA PRESTACION DEL SERVICIO DE SALUD"]
[613,"LESION A CONSCRIPTO DURANTE INSTRUCCION"]
[614,"LESION A CONSCRIPTO EN COMBATE O ENFRENTAMIENTO"]
[615,"LESION A CONSCRIPTO EN ENFRENTAMIENTO ENTRE TROPAS"]
[616,"LESION A CONSCRIPTO EN OPERATIVO MILITAR"]
[618,"LESION A CONSCRIPTO EN PROCEDIMIENTO DE POLICIA"]
[619,"LESION A CONSCRIPTO POR ACTO TERRORISTA"]
[620,"LESION A CONSCRIPTO POR EXPLOSION DE MINA ANTIPERSONAL"]
[621,"LESION A MIEMBRO VOLUNTARIO DE LA FUERZA PUBLICA CON AERONAVE OFICIAL"]
[622,"LESION A MIEMBRO VOLUNTARIO DE LA FUERZA PUBLICA CON ARMA DE DOTACION OFICIAL"]
[623,"LESION A MIEMBRO VOLUNTARIO DE LA FUERZA PUBLICA CON ARMA DE USO PERSONAL"]
[624,"LESION A MIEMBRO VOLUNTARIO DE LA FUERZA PUBLICA CON NAVE OFICIAL"]
[625,"LESION A MIEMBRO VOLUNTARIO DE LA FUERZA PUBLICA CON VEHICULO OFICIAL"]
[626,"LESION A MIEMBRO VOLUNTARIO DE LA FUERZA PUBLICA DERIVADA DE LA PRESTACION DEL SERVICIO DE SALUD"]
[627,"LESION A MIEMBRO VOLUNTARIO DE LA FUERZA PUBLICA DURANTE INSTRUCCION"]
[628,"LESION A MIEMBRO VOLUNTARIO DE LA FUERZA PUBLICA EN COMBATE O ENFRENTAMIENTO"]
[629,"LESION A MIEMBRO VOLUNTARIO DE LA FUERZA PUBLICA EN ENFRENTAMIENTO ENTRE TROPAS"]
[630,"LESION A MIEMBRO VOLUNTARIO DE LA FUERZA PUBLICA EN OPERATIVO MILITAR"]
[632,"LESION A MIEMBRO VOLUNTARIO DE LA FUERZA PUBLICA EN PROCEDIMIENTO DE POLICIA"]
[633,"LESION A MIEMBRO VOLUNTARIO DE LA FUERZA PUBLICA POR ACTO TERRORISTA"]
[634,"LESION A MIEMBRO VOLUNTARIO DE LA FUERZA PUBLICA POR EXPLOSION DE MINA ANTIPERSONAL"]
[635,"LESION A OPERADOR POR EJECUCION DE OBRA PUBLICA"]
[636,"LESION A PERSONAL DOCENTE O ADMINISTRATIVO EN ESTABLECIMIENTO EDUCATIVO"]
[638,"LESION A RECLUSO CAUSADA POR AGENTES DEL ESTADO"]
[639,"LESION A RECLUSO CAUSADA POR OTRO RECLUSO"]
[640,"LESION A RECLUSO CAUSADA POR TERCEROS"]
[641,"LESION A RECLUSO DERIVADA DE LA PRESTACION DEL SERVICIO DE SALUD"]
[642,"LESION A TERCERO POR EJECUCION DE OBRA PUBLICA"]
[643,"LESION ACCIDENTAL O FORTUITA A CONSCRIPTO"]
[644,"LESION ACCIDENTAL O FORTUITA A MIEMBRO VOLUNTARIO DE LA FUERZA PUBLICA"]
[645,"LESION ACCIDENTAL O FORTUITA A RECLUSO"]
[646,"LESION AUTO INFLIGIDA DE CONSCRIPTO"]
[647,"LESION AUTO INFLIGIDA DE MIEMBRO VOLUNTARIO DE LA FUERZA PUBLICA"]
[648,"LESION AUTO INFLIGIDA DE RECLUSO"]
[651,"LESION DE CONSCRIPTO POR DESCONOCIDOS"]
[652,"LESION DE MIEMBRO VOLUNTARIO DE LA FUERZA PUBLICA POR DESCONOCIDOS"]
[653,"LESION EN ACCIDENTE AEREO"]
[654,"LESION EN ACCIDENTE FLUVIAL"]
[655,"LESION EN ACCIDENTE MARITIMO"]
[656,"LESION EN MANIFESTACION PUBLICA"]
[657,"LESION EN OPERACION ADMINISTRATIVA"]
[658,"LESION EN ZONA DE DISTENSION"]
[26,"LESION ENORME"]
[659,"LESION POR ACTIVIDAD DEL SECTOR DE HIDROCARBUROS"]
[660,"LESION POR ACTIVIDAD MINERA"]
[661,"LESION POR ALUD DE TIERRA"]
[662,"LESION POR CAIDA DE ARBOL"]
[663,"LESION POR CONDUCCION DE ENERGIA ELECTRICA"]
[664,"LESION POR FALTA DE ADOPCION DE MEDIDAS DE PROTECCION Y SEGURIDAD"]
[665,"LESION POR FALTA DE ILUMINACION EN LA VIA PUBLICA"]
[666,"LESION POR FALTA DE SEÑALIZACION EN LA VIA PUBLICA"]
[667,"LESION POR INCUMPLIMIENTO DEL DEBER DE SEGURIDAD EN LA ATENCION HOSPITALARIA"]
[668,"LESION POR INDEBIDA O INSUFICIENTE ADOPCION DE MEDIDAS DE PROTECCION Y SEGURIDAD"]
[669,"LESION POR INDEBIDA PRESTACION DEL SERVICIO DE SALUD"]
[670,"LESION POR INDEBIDA PRESTACION DEL SERVICIO DE SALUD GINECO OBSTETRICO"]
[671,"LESION POR INDEBIDO CONSENTIMIENTO INFORMADO EN LA PRESTACION DEL SERVICIO DE SALUD"]
[672,"LESION POR INUNDACION"]
[673,"LESION POR MODIFICACION O REDUCCION DE LAS MEDIDAS DE PROTECCION Y SEGURIDAD"]
[674,"LESION POR RUINA DE EDIFICACION PUBLICA"]
[675,"LESION POR SEMOVIENTE DE PROPIEDAD DEL ESTADO"]
[676,"LESION POR USO EXCESIVO DE LA FUERZA"]
[677,"LESION POR VIA PUBLICA EN MAL ESTADO"]
[56,"MAYOR PERMANENCIA DE OBRA"]
[57,"MAYORES CANTIDADES, SOBRECOSTOS Y OBRAS ADICIONALES EN CONTRATO DE OBRA A PRECIO GLOBAL"]
[58,"MAYORES CANTIDADES, SOBRECOSTOS Y OBRAS ADICIONALES EN CONTRATO DE OBRA A PRECIO UNITARIO"]
[59,"MAYORES CANTIDADES, SOBRECOSTOS Y OBRAS ADICIONALES POR EVENTO DE FUERZA MAYOR"]
[60,"MODIFICACION Y/O REVISION DE LAS PRESTACIONES CONTRACTUALES"]
[61,"MODIFICACION Y/O REVISION DEL PLAZO CONTRACTUAL"]
[691,"MORA EN LA ENTREGA DE BIEN EMBARGADO O SECUESTRADO"]
[692,"MORA EN LA ENTREGA DE BIEN INCAUTADO U OCUPADO EN UN PROCESO PENAL"]
[695,"MUERTE ACCIDENTAL O FORTUITA A CONSCRIPTO"]
[696,"MUERTE ACCIDENTAL O FORTUITA A MIEMBRO VOLUNTARIO DE LA FUERZA PUBLICA"]
[697,"MUERTE ACCIDENTAL O FORTUITA A RECLUSO"]
[698,"MUERTE AUTO INFLIGIDA DE CONSCRIPTO"]
[699,"MUERTE AUTO INFLIGIDA DE MIEMBRO VOLUNTARIO DE LA FUERZA PUBLICA"]
[700,"MUERTE AUTO INFLIGIDA DE RECLUSO"]
[701,"MUERTE DE ALUMNO EN ESTABLECIMIENTO EDUCATIVO"]
[702,"MUERTE DE CIVIL CON AERONAVE OFICIAL"]
[703,"MUERTE DE CIVIL CON ARMA DE DOTACION OFICIAL"]
[704,"MUERTE DE CIVIL CON NAVE OFICIAL"]
[705,"MUERTE DE CIVIL CON VEHICULO OFICIAL"]
[706,"MUERTE DE CIVIL EN COMBATE O ENFRENTAMIENTO"]
[708,"MUERTE DE CIVIL EN ENFRENTAMIENTO ENTRE TROPAS"]
[709,"MUERTE DE CIVIL EN OPERATIVO MILITAR"]
[710,"MUERTE DE CIVIL EN PROCEDIMIENTO DE POLICIA"]
[711,"MUERTE DE CIVIL POR ACTO TERRORISTA CONTRA INSTALACIONES, PERSONAJES O ELEMENTOS REPRESENTATIVOS DEL ESTADO"]
[712,"MUERTE DE CIVIL POR ACTO TERRORISTA CONTRA POBLACION CIVIL"]
[714,"MUERTE DE CIVIL POR EXPLOSION DE MINA ANTIPERSONAL"]
[716,"MUERTE DE CIVIL POR GRUPO ARMADO ILEGAL"]
[717,"MUERTE DE CONSCRIPTO CON AERONAVE OFICIAL"]
[718,"MUERTE DE CONSCRIPTO CON ARMA DE DOTACION OFICIAL"]
[719,"MUERTE DE CONSCRIPTO CON NAVE OFICIAL"]
[720,"MUERTE DE CONSCRIPTO CON VEHICULO OFICIAL"]
[721,"MUERTE DE CONSCRIPTO DERIVADA DE LA PRESTACION DEL SERVICIO DE SALUD"]
[722,"MUERTE DE CONSCRIPTO EN COMBATE O ENFRENTAMIENTO"]
[723,"MUERTE DE CONSCRIPTO EN ENFRENTAMIENTO ENTRE TROPAS"]
[724,"MUERTE DE CONSCRIPTO EN INSTRUCCION"]
[725,"MUERTE DE CONSCRIPTO EN OPERATIVO MILITAR"]
[727,"MUERTE DE CONSCRIPTO EN PROCEDIMIENTO DE POLICIA"]
[728,"MUERTE DE CONSCRIPTO POR ACTO TERRORISTA"]
[729,"MUERTE DE CONSCRIPTO POR DESCONOCIDOS"]
[730,"MUERTE DE CONSCRIPTO POR EXPLOSION DE MINA ANTIPERSONAL"]
[731,"MUERTE DE MIEMBRO VOLUNTARIO DE LA FUERZA PUBLICA CON AERONAVE OFICIAL"]
[732,"MUERTE DE MIEMBRO VOLUNTARIO DE LA FUERZA PUBLICA CON ARMA DE DOTACION OFICIAL"]
[733,"MUERTE DE MIEMBRO VOLUNTARIO DE LA FUERZA PUBLICA CON ARMA DE USO PERSONAL"]
[734,"MUERTE DE MIEMBRO VOLUNTARIO DE LA FUERZA PUBLICA CON NAVE OFICIAL"]
[735,"MUERTE DE MIEMBRO VOLUNTARIO DE LA FUERZA PUBLICA CON VEHICULO OFICIAL"]
[736,"MUERTE DE MIEMBRO VOLUNTARIO DE LA FUERZA PUBLICA DERIVADA DE LA PRESTACION DEL SERVICIO DE SALUD"]
[737,"MUERTE DE MIEMBRO VOLUNTARIO DE LA FUERZA PUBLICA EN COMBATE O ENFRENTAMIENTO"]
[738,"MUERTE DE MIEMBRO VOLUNTARIO DE LA FUERZA PUBLICA EN ENFRENTAMIENTO ENTRE TROPAS"]
[739,"MUERTE DE MIEMBRO VOLUNTARIO DE LA FUERZA PUBLICA EN INSTRUCCION"]
[740,"MUERTE DE MIEMBRO VOLUNTARIO DE LA FUERZA PUBLICA EN OPERATIVO MILITAR"]
[742,"MUERTE DE MIEMBRO VOLUNTARIO DE LA FUERZA PUBLICA EN PROCEDIMIENTO DE POLICIA"]
[743,"MUERTE DE MIEMBRO VOLUNTARIO DE LA FUERZA PUBLICA POR ACTO TERRORISTA"]
[744,"MUERTE DE MIEMBRO VOLUNTARIO DE LA FUERZA PUBLICA POR DESCONOCIDOS"]
[745,"MUERTE DE MIEMBRO VOLUNTARIO DE LA FUERZA PUBLICA POR EXPLOSION DE MINA ANTIPERSONAL"]
[747,"MUERTE DE OPERADOR POR EJECUCION DE OBRA PUBLICA"]
[748,"MUERTE DE PERSONAL DOCENTE O ADMINISTRATIVO EN ESTABLECIMIENTO EDUCATIVO"]
[750,"MUERTE DE RECLUSO CAUSADA POR AGENTES DEL ESTADO"]
[751,"MUERTE DE RECLUSO CAUSADA POR OTRO RECLUSO"]
[752,"MUERTE DE RECLUSO CAUSADA POR TERCEROS"]
[753,"MUERTE DE RECLUSO DERIVADA DE LA PRESTACION DEL SERVICIO DE SALUD"]
[755,"MUERTE DE TERCERO POR EJECUCION DE OBRA PUBLICA"]
[756,"MUERTE EN ACCIDENTE AEREO"]
[757,"MUERTE EN ACCIDENTE FLUVIAL"]
[758,"MUERTE EN ACCIDENTE MARITIMO"]
[760,"MUERTE EN MANIFESTACION PUBLICA"]
[761,"MUERTE EN OPERACION ADMINISTRATIVA"]
[762,"MUERTE EN ZONA DE DISTENSION"]
[764,"MUERTE POR ACTIVIDAD DEL SECTOR DE HIDROCARBUROS"]
[765,"MUERTE POR ACTIVIDAD MINERA"]
[766,"MUERTE POR ALUD DE TIERRA"]
[768,"MUERTE POR CAIDA DE ARBOL"]
[769,"MUERTE POR CONDUCCION DE ENERGIA ELECTRICA"]
[770,"MUERTE POR FALTA DE ADOPCION DE MEDIDAS DE PROTECCION Y SEGURIDAD"]
[771,"MUERTE POR FALTA DE ILUMINACION EN LA VIA PUBLICA"]
[772,"MUERTE POR FALTA DE SEÑALIZACION EN LA VIA PUBLICA"]
[774,"MUERTE POR INCUMPLIMIENTO DEL DEBER DE SEGURIDAD EN LA ATENCION HOSPITALARIA"]
[775,"MUERTE POR INDEBIDA O INSUFICIENTE ADOPCION DE MEDIDAS DE PROTECCION Y SEGURIDAD"]
[776,"MUERTE POR INDEBIDA PRESTACION DEL SERVICIO DE SALUD"]
[777,"MUERTE POR INDEBIDA PRESTACION DEL SERVICIO DE SALUD GINECO OBSTETRICO"]
[778,"MUERTE POR INDEBIDO CONSENTIMIENTO INFORMADO EN LA PRESTACION DEL SERVICIO DE SALUD"]
[779,"MUERTE POR INUNDACION"]
[780,"MUERTE POR MODIFICACION O REDUCCION DE LAS MEDIDAS DE PROTECCION Y SEGURIDAD"]
[781,"MUERTE POR RUINA DE EDIFICACION PUBLICA"]
[782,"MUERTE POR SEMOVIENTE DE PROPIEDAD DEL ESTADO"]
[783,"MUERTE POR USO EXCESIVO DE LA FUERZA"]
[784,"MUERTE POR VIA PUBLICA EN MAL ESTADO"]
[786,"NO ACEPTACION DE ENAJENACION VOLUNTARIA DE INMUEBLE AFECTADO A UN PROYECTO DE INFRAESTRUCTURA"]
[787,"NO ACEPTACION DE LA RENUNCIA"]
[788,"NO DEVOLUCION DE APORTES A SALUD DESCONTADOS DE LA PENSION GRACIA"]
[789,"NO OTORGAMIENTO DE LICENCIA DE FUNCIONAMIENTO"]
[790,"NO OTORGAMIENTO DE LICENCIAS AMBIENTALES"]
[792,"NO PAGO DE RECOMPENSA POR DELACION"]
[793,"NO RECONOCIMIENTO BONIFICACION MENSUAL PARA LAS MADRES COMUNITARIAS Y SUSTITUTAS"]
[794,"NO RECONOCIMIENTO DE ASIGNACION DE RETIRO"]
[795,"NO RECONOCIMIENTO DE BONO PENSIONAL"]
[796,"NO RECONOCIMIENTO DE COSTO ACUMULADO DE ASCENSOS EN EL ESCALAFON DOCENTE"]
[797,"NO RECONOCIMIENTO DE CUOTA PARTE PENSIONAL"]
[798,"NO RECONOCIMIENTO DE DESCANSOS COMPENSATORIOS"]
[799,"NO RECONOCIMIENTO DE DEVOLUCION DE APORTES ENTRE ADMINISTRADORAS DEL SISTEMA DE SEGURIDAD SOCIAL INTEGRAL"]
[800,"NO RECONOCIMIENTO DE HONORARIOS"]
[801,"NO RECONOCIMIENTO DE INCREMENTO DE PENSION DE INVALIDEZ"]
[802,"NO RECONOCIMIENTO DE INCREMENTO DE PENSION DE VEJEZ"]
[804,"NO RECONOCIMIENTO DE INDEMNIZACION POR DESPIDO SIN JUSTA CAUSA"]
[805,"NO RECONOCIMIENTO DE INDEMNIZACION POR DISMINUCION DE CAPACIDAD LABORAL"]
[806,"NO RECONOCIMIENTO DE INDEMNIZACION POR MUERTE EN ACCIDENTE DE TRABAJO"]
[979,"NO RECONOCIMIENTO DE INDEMNIZACION SUSTITUTIVA DE PENSION DE SOBREVIVIENTES"]
[807,"NO RECONOCIMIENTO DE INDEMNIZACION SUSTITUTIVA DE PENSION DE VEJEZ"]
[808,"NO RECONOCIMIENTO DE INTERESES SOBRE AUXILIO DE CESANTIAS"]
[809,"NO RECONOCIMIENTO DE LA BONIFICACION POR COMPENSACION"]
[810,"NO RECONOCIMIENTO DE LA INDEXACION Y REAJUSTE DE LA ASIGNACION DE RETIRO"]
[811,"NO RECONOCIMIENTO DE LA INDEXACION Y REAJUSTE DE LA PENSION DE INVALIDEZ"]
[812,"NO RECONOCIMIENTO DE LA INDEXACION Y REAJUSTE DE LA PENSION DE SOBREVIVIENTE"]
[813,"NO RECONOCIMIENTO DE LA INDEXACION Y REAJUSTE DE LA PENSION DE VEJEZ"]
[985,"NO RECONOCIMIENTO DE LA INDEXACION Y REAJUSTE DE PENSION SUSTITUTIVA"]
[1093,"NO RECONOCIMIENTO DE LICENCIA DE MATERNIDAD O PATERNIDAD"]
[815,"NO RECONOCIMIENTO DE LOS TRES (3) MESES DE ALTA ESTABLECIDOS EN EL DECRETO 1214 DE 1990"]
[816,"NO RECONOCIMIENTO DE PAGO DE INCAPACIDAD MEDICA"]
[817,"NO RECONOCIMIENTO DE PENSION DE INVALIDEZ"]
[818,"NO RECONOCIMIENTO DE PENSION DE SOBREVIVIENTE"]
[819,"NO RECONOCIMIENTO DE PENSION DE VEJEZ"]
[820,"NO RECONOCIMIENTO DE PENSION FAMILIAR"]
[821,"NO RECONOCIMIENTO DE PENSION SUSTITUTIVA"]
[822,"NO RECONOCIMIENTO DE PRESTACIONES SOCIALES"]
[823,"NO RECONOCIMIENTO DE PRIMA DE ACTIVIDAD"]
[824,"NO RECONOCIMIENTO DE PRIMA DE ACTUALIZACION"]
[825,"NO RECONOCIMIENTO DE PRIMA DE ANTIGUEDAD"]
[826,"NO RECONOCIMIENTO DE PRIMA DE SERVICIOS"]
[827,"NO RECONOCIMIENTO DE PRIMA TECNICA"]
[828,"NO RECONOCIMIENTO DE REAJUSTE DE LA PENSION POR LEY 4 DE 1992"]
[829,"NO RECONOCIMIENTO DE REAJUSTE O NIVELACION SALARIAL"]
[830,"NO RECONOCIMIENTO DE REGALIAS"]
[831,"NO RECONOCIMIENTO DE RETROACTIVO DE PENSION DE INVALIDEZ"]
[982,"NO RECONOCIMIENTO DE RETROACTIVO DE PENSION DE SOBREVIVIENTE"]
[832,"NO RECONOCIMIENTO DE RETROACTIVO DE PENSION DE VEJEZ"]
[987,"NO RECONOCIMIENTO DE RETROACTIVO DE PENSION SUSTITUTIVA"]
[834,"NO RECONOCIMIENTO DE SUBSIDIO DE VIVIENDA"]
[835,"NO RECONOCIMIENTO DE SUBSIDIO FAMILIAR"]
[836,"NO RECONOCIMIENTO DE SUSTITUCION DE LA ASIGNACION DE RETIRO"]
[837,"NO RECONOCIMIENTO DE TIEMPO DOBLE DE SERVICIO PRESTADO EN ESTADO DE CONMOCION INTERIOR O DE GUERRA INTERNACIONAL"]
[838,"NO RECONOCIMIENTO DE VIATICOS"]
[970,"NO RECONOCIMIENTO DEL 20% DE INCREMENTO DE ASIGNACION SALARIAL MENSUAL PARA SOLDADOS PROFESIONALES SEGUN DECRETO 1794 DE 2000"]
[839,"NO RECONOCIMIENTO DEL AUXILIO DE CESANTIAS"]
[840,"NO RECONOCIMIENTO DEL AUXILIO FUNERARIO"]
[841,"NO RECONOCIMIENTO DEL INCENTIVO A LA CAPITALIZACION RURAL ESTABLECIDO EN LA LEY 101 DE 1993"]
[842,"NO RECONOCIMIENTO DEL SUBSIDIO NOTARIAL"]
[843,"NO RECONOCIMIENTO DEL TIEMPO DE SERVICIO MILITAR OBLIGATORIO"]
[847,"NO RECONOCIMIENTO EN DERECHO DE SUBSIDIOS A LOS USUARIOS DE SERVICIOS PUBLICOS DOMICILIARIOS"]
[849,"NO RESTITUCION DE BIEN INMUEBLE ARRENDADO"]
[850,"NO SUSCRIPCION DE CONTRATO DE CONCESION PORTUARIA"]
[62,"NULIDAD ABSOLUTA DEL CONTRATO ESTATAL"]
[63,"NULIDAD RELATIVA DEL CONTRATO ESTATAL"]
[854,"OCUPACION PERMANENTE DE INMUEBLE"]
[855,"OCUPACION TEMPORAL DE INMUEBLE"]
[857,"OMISION DE ASISTENCIA HUMANITARIA"]
[858,"OMISION DE LAS NORMAS DE SALUD OCUPACIONAL"]
[860,"OMISION EN LA DEVOLUCION OPORTUNA DE TRIBUTOS ADUANEROS PAGADOS EN EXCESO"]
[862,"OMISION EN LAS FUNCIONES DE INSPECCION, VIGILANCIA Y CONTROL"]
[864,"PAGO DE CONDENA O CONCILIACION POR ACTUACION DOLOSA O GRAVEMENTE CULPOSA DE SERVIDOR O EX SERVIDOR PUBLICO O PARTICULAR EN EJERCICIO DE FUNCIONES PUBLICAS"]
[867,"PERDIDA DE POSESION O TENENCIA DE BIEN"]
[868,"PERDIDA O DAÑOS A BIENES EMBARGADOS O SECUESTRADOS"]
[869,"PERDIDA O DAÑOS A BIENES INCAUTADOS U OCUPADOS EN PROCESOS PENALES"]
[870,"PERDIDA O DESTRUCCION DE TITULO VALOR"]
[27,"PERJUICIOS OCASIONADOS POR ACTAS DE JUNTA DE SOCIOS"]
[874,"PERJUICIOS OCASIONADOS POR DECLARATORIA DE ZONA DE RESERVA FORESTAL"]
[875,"PERJUICIOS OCASIONADOS POR INSTAURAR UN PROCESO JUDICIAL INFUNDADO"]
[876,"PERJUICIOS OCASIONADOS POR NO EXPEDICION DE DOCUMENTO"]
[877,"PERJUICIOS OCASIONADOS POR REESTRUCTURACION Y LIQUIDACION DE ENTIDADES DE DERECHO PRIVADO"]
[0,"PERTURBACION A LA POSESION"]
[881,"PRESCRIPCION ADQUISITIVA DE DOMINIO"]
[884,"PRESTACION INADECUADA DEL SERVICIO CATASTRAL"]
[885,"PRESTACION INADECUADA DEL SERVICIO NOTARIAL Y REGISTRAL"]
[887,"PRIVACION DE LA LIBERTAD SIN QUE MEDIE MEDIDA DE ASEGURAMIENTO"]
[9,"PRIVACION INJUSTA DE LA LIBERTAD"]
[64,"RECLAMACIONES SOBRE ASPECTOS SIN SALVEDADES EN EL ACTA DE LIQUIDACION"]
[65,"REDUCCION DE LA CLAUSULA PENAL POR INCUMPLIMIENTO PARCIAL"]
[903,"RETENCION DE CUOTAS SINDICALES"]
[904,"RETENCION ILEGAL DE BIENES"]
[907,"RETIRO ILEGAL DE ALUMNO DE ESCUELA DE FORMACION MILITAR"]
[909,"REVOCATORIA DE LICENCIA DE FUNCIONAMIENTO"]
[910,"REVOCATORIA DE LICENCIAS AMBIENTALES"]
[916,"SECUESTRO DE CIVIL"]
[917,"SECUESTRO DE CONSCRIPTO"]
[918,"SECUESTRO DE MIEMBRO VOLUNTARIO DE LA FUERZA PUBLICA"]
[920,"SIMULACION"]
[922,"SOLICITUD DE LA DIVISION MATERIAL DE BIEN INMUEBLE"]
[924,"SUBROGACION DE LOS DERECHOS DEL ASEGURADO POR RESPONSABILIDAD EN SINIESTRO"]
[927,"SUSPENSION DE LICENCIA DE FUNCIONAMIENTO"]
[928,"SUSPENSION DE LICENCIAS AMBIENTALES"]
[929,"SUSTITUCION PATRONAL"]
[972,"TRANSMISION FORZOSA DEL DERECHO REAL DE DOMINIO PRIVADO SOBRE UN BIEN A FAVOR DEL ESTADO - EXPROPIACION JUDICIAL"]
[934,"VIA DE HECHO DE LA ADMINISTRACION"]
[937,"VIOLACION A LA PROTECCION DE DATOS PERSONALES"]
[938,"VIOLACION AL DEBIDO PROCESO ADMINISTRATIVO"]
[939,"VIOLACION AL DERECHO DE POSTULACION A UN CARGO DE ELECCION POPULAR"]
[941,"VIOLACION AL REGIMEN JURIDICO DE DERECHOS DE AUTOR"]
[942,"VIOLACION AL REGIMEN JURIDICO DE PROPIEDAD INDUSTRIAL"]
[943,"VIOLACION AL REGIMEN LEGAL DE INHABILIDADES E INCOMPATIBILIDADES PARA ACCEDER A CARGO DE ELECCION POPULAR"]
[944,"VIOLACION O AMENAZA A LA LIBRE COMPETENCIA ECONOMICA"]
[945,"VIOLACION O AMENAZA A LA MORALIDAD ADMINISTRATIVA"]
[946,"VIOLACION O AMENAZA A LA SEGURIDAD Y SALUBRIDAD PUBLICAS"]
[947,"VIOLACION O AMENAZA A LOS DERECHOS DE LOS CONSUMIDORES Y USUARIOS"]
[948,"VIOLACION O AMENAZA AL GOCE DE UN AMBIENTE SANO"]
[949,"VIOLACION O AMENAZA AL GOCE DEL ESPACIO PUBLICO Y A LA UTILIZACION Y DEFENSA DE BIENES DE USO PUBLICO"]
[950,"VIOLACION O AMENAZA AL PATRIMONIO CULTURAL DE LA NACION"]
[951,"VIOLACION O AMENAZA AL PATRIMONIO PUBLICO"]
[952,"VOCACION HEREDITARIA DE BIENES"]